Workbook

Sheet GUIDE_SOLUTIONS
B1: GUIDE TO REAL OPTION VALUE SOLUTIONS
A2: #1 Session | B2: CHAPTER 2 | C2: INTRODUCTION TO BASICS
B3: EXERCISE 2.1 | C3: Put Binomial, No Income
B4: EXERCISE 2.2 | C4: Call Binomial, No Income
B5: EXERCISE 2.3 | C5: =C4 -> Call Binomial, No Income
B6: PROBLEM 2.4 | C6: Black-Scholes Deferral Option
B7: PROBLEM 2.5 | C7: =C6 -> Black-Scholes Deferral Option
B8: PROBLEM 2.6 | C8: Margrabe Exchange
A9: #2 Session | B9: CHAPTER 3 | C9: STRATEGIES
B10: EXERCISE 3.1 | C10: Write Call Strategy: "Texas Marketing Hedge"
B11: EXERCISE 3.2 | C11: Buy Protective Put Strategy
B12: EXERCISE 3.3 | C12: Write Extreme Call Strategy: "Wildcat Texas Hedge"
B13: PROBLEM 3.4 | C13: Buy Protective Call Option for Asset User
B14: PROBLEM 3.5 | C14: Buy Put funded by Write Call for Leveraged Assets
B15: PROBLEM 3.6 | C15: Maria's Unusual Salary Insurance Arrangement
A16: #3 Session | B16: CHAPTER 4 | C16: AMERICAN PERPETUAL
B17: EXERCISE 4.1 | C17: Real American Perpetual Call Option
B18: EXERCISE 4.2 | C18: =C17 -> Real American Perpetual Call Option
B19: EXERCISE 4.3 | C19: =C18 -> Real American Perpetual Call Option
B20: PROBLEM 4.4 | C20: Perpetual American Option PDE
B21: PROBLEM 4.5 | C21: Hedging Writing a Real Option
B22: PROBLEM 4.6 | C22: Hedging a Long Position in a Real Option
A23: #4 Session | B23: CHAPTER 14 | C23: INCENTIVE OPTIONS
B24: EXERCISE 14.1 | C24: Active Floor
B25: EXERCISE 14.2 | C25: Active Ceiling
B26: EXERCISE 14.3 | C26: Active Collar
B27: PROBLEM 14.4 | C27: Active Floor
B28: PROBLEM 14.5 | C28: Active Collar
B29: PROBLEM 14.6 | C29: Invest Collar
A31: REAL OPTION VALUE EXCEL 3 17 EARLY SOLUTIONS
A34: Session | B34: CHAPTER 10 | C34: DEBT STRATEGIES
B35: ODE PROOF | C35: Option to Default
B36: V DELTA | C36: Equity & Debt & Bankruptcy
B37: BASE CASE DEBT | C37: Equity & Debt & Bankruptcy
B38: STRATEGY a | C38: Equity & Debt & Bankruptcy
B39: FAIR STRATEGY | C39: Equity & Debt & Bankruptcy: Renegotiation
B40: SIMPLE STRATEGY | C40: Personal Equity & Debt & Bankruptcy

Sheet Debt ODE
B1: ODE PROOF for DEBT CLAIM
A3: INPUT
A4: V | B4: 40
A5: C | B5: 4
A6: D | B6: =B5/B12 -> 66.66666667
A7: d | B7: 0
A8: m=r-d | B8: =B12-B7 -> 0.06
A9: s | B9: 0.2
A10: a | B10: 0.5
A11: t | B11: 0.35
A12: r(f) | B12: 0.06
A13: OUTPUT
A14: VB | B14: =(1-B11)*(B5/B12)*(-B16/(-B16+1)) -> 32.5 | C14: (1-B11)*(B5/B12)*(-B16/(-B16+1)) | D14: 10.9
A15: D* (V) | B15: =(B5/B12)+((1-B10)*B14-(B5/B12))*(B14/B4)^-B16 -> 39.62432861 | C15: (B5/B12)+((1-B10)*B14-(B5/B12))*(B14/B4)^-B16 | D15: 10.6
A16: b2 | B16: =(0.5-(B12-B7)/(B9^2)-SQRT((0.5-(B12-B7)/(B9^2))^2+2*B12/(B9^2))) -> -3 | C16: (0.5-(B12-B7)/(B9^2)-SQRT((0.5-(B12-B7)/(B9^2))^2+2*B12/(B9^2))) | D16: 10.5
A18: ODE | B18: =0.5*(B9^2)*(B4^2)*B20+B12*B4*B19-B12*B15+B5 -> 0 | C18: 0.5*(B9^2)*(B4^2)*B20+B12*B4*B19-B12*B15+B5 | D18: 10.2
A19: D'(V) | B19: =B16*((1-B10)*B14-(B5/B12))*(1/B4)*(B14/B4)^-B16 -> 2.028175354 | C19: B16*((1-B10)*B14-(B5/B12))*(1/B4)*(B14/B4)^-B16 | D19: A6
A20: D''(V) | B20: =((B16^2)-B16)*((1-B10)*B14-(B5/B12))*(1/(B4^2))*(B14/B4)^-B16 -> -0.2028175354 | C20: ((B16^2)-B16)*((1-B10)*B14-(B5/B12))*(1/(B4^2))*(B14/B4)^-B16 | D20: A7

Sheet V Delta
D1: LELAND 1994
A3: INPUT
A4: V | B4: 30 | C4: =B4+10 -> 40 | D4: =C4+10 -> 50 | E4: 60 | F4: 70 | G4: 80 | H4: 90 | I4: 100 | J4: 110 | K4: 120
A5: C | B5: 4 | C5: 4 | D5: 4 | E5: =D5 -> 4 | F5: =E5 -> 4 | G5: 4 | H5: 4 | I5: 4 | J5: 4 | K5: 4
A6: D | B6: =B5/B12 -> 66.66666667 | C6: 66.66666667 | D6: =D5/D12 -> 66.66666667 | E6: =E5/E12 -> 66.66666667 | F6: =F5/F12 -> 66.66666667 | G6: 66.66666667 | H6: 66.66666667 | I6: 66.66666667 | J6: 66.66666667 | K6: 66.66666667
A7: d | B7: 0 | C7: 0 | D7: 0 | E7: 0 | F7: 0 | G7: 0 | H7: 0 | I7: 0 | J7: 0 | K7: 0
A8: m | B8: =B12-B7 -> 0.06 | C8: =C12-C7 -> 0.06 | D8: 0.06 | E8: 0.06 | F8: 0.06 | G8: 0.06 | H8: 0.06 | I8: 0.06 | J8: 0.06 | K8: 0.06
A9: s | B9: 0.2 | C9: 0.2 | D9: 0.2 | E9: 0.2 | F9: 0.2 | G9: 0.2 | H9: 0.2 | I9: 0.2 | J9: 0.2 | K9: 0.2
A10: a | B10: 0.5 | C10: 0.5 | D10: 0.5 | E10: 0.5 | F10: 0.5 | G10: 0.5 | H10: 0.5 | I10: 0.5 | J10: 0.5 | K10: 0.5
A11: t | B11: 0.35 | C11: 0.35 | D11: 0.35 | E11: 0.35 | F11: 0.35 | G11: 0.35 | H11: 0.35 | I11: 0.35 | J11: 0.35 | K11: 0.35
A12: r(f) | B12: 0.06 | C12: 0.06 | D12: 0.06 | E12: 0.06 | F12: 0.06 | G12: 0.06 | H12: 0.06 | I12: 0.06 | J12: 0.06 | K12: 0.06
A13: OUTPUT
A14: VB EQ14 | B14: =(1-B11)*B5/(B12+0.5*B9^2) -> 32.5 | C14: 32.5 | D14: =(1-D11)*D5/(D12+0.5*D9^2) -> 32.5 | E14: =(1-E11)*E5/(E12+0.5*E9^2) -> 32.5 | F14: =(1-F11)*F5/(F12+0.5*F9^2) -> 32.5 | G14: 32.5 | H14: 32.5 | I14: 32.5 | J14: 32.5 | K14: 32.5
A15: D* EQ7 | B15: =(B5/B12)+((1-B10)*B14-(B5/B12))*(B14^B22)*B4^-B22 -> 2.566309799 | C15: =(C5/C12)+((1-C10)*C14-(C5/C12))*(C14^C22)*C4^-C22 -> 39.62432861 | D15: =(D5/D12)+((1-D10)*D14-(D5/D12))*(D14^D22)*D4^-D22 -> 52.82098958 | E15: =(E5/E12)+((1-E10)*E14-(E5/E12))*(E14^E22)*E4^-E22 -> 58.65412206 | F15: 61.62086598 | G15: 63.28637441 | H15: 64.29257938 | I15: 64.93595703 | J15: 65.3663589 | K15: 65.66509859
A16: D* EQ15 | B16: =(B5/B12)*(1-((B5/B4)^B22)*B20) -> 2.566309799 | C16: 39.62432861 | D16: =(D5/D12)*(1-((D5/D4)^D22)*D20) -> 52.82098958 | E16: =(E5/E12)*(1-((E5/E4)^E22)*E20) -> 58.65412206 | F16: 61.62086598 | G16: 63.28637441 | H16: 64.29257938 | I16: 64.93595703 | J16: 65.3663589 | K16: 65.66509859
A17: v(V) EQ16 | B17: =B4+(B11*B5/B12)*(1-((B5/B4)^B22)*B19) -> 3.006606867 | C17: 42.10174561 | D17: =D4+(D11*D5/D12)*(1-((D5/D4)^D22)*D19) -> 62.46276042 | E17: =E4+(E11*E5/E12)*(1-((E5/E4)^E22)*E19) -> 77.04249253 | F17: 89.37175428 | G17: 100.6793849 | H17: 111.4693805 | I17: 121.9745117 | J17: 132.3124305 | K17: 142.5469782
A18: E(V) EQ17 | B18: =B4-(1-B11)*(B5/B12)*(1-((B5/B4)^B22)*B21) -> 0.4402970679 | C18: 2.477416992 | D18: =D4-(1-D11)*(D5/D12)*(1-((D5/D4)^D22)*D21) -> 9.641770833 | E18: =E4-(1-E11)*(E5/E12)*(1-((E5/E4)^E22)*E21) -> 18.38837047 | F18: 27.7508883 | G18: 37.39301046 | H18: 47.17680113 | I18: 57.03855469 | J18: 66.94607164 | K18: 76.88187964
A19: h | B19: =(1+B22+B10*(1-B11)*B22/B11)*B21 -> 909.9251883 | C19: 909.9251883 | D19: =(1+D22+D10*(1-D11)*D22/D11)*D21 -> 909.9251883 | E19: =(1+E22+E10*(1-E11)*E22/E11)*E21 -> 909.9251883 | F19: 909.9251883 | G19: 909.9251883 | H19: 909.9251883 | I19: 909.9251883 | J19: 909.9251883 | K19: 909.9251883
A20: k | B20: =(1+B22-(1-B10)*(1-B11)*B22)*B21 -> 405.6350708 | C20: 405.6350708 | D20: =(1+D22-(1-D10)*(1-D11)*D22)*D21 -> 405.6350708 | E20: =(1+E22-(1-E10)*(1-E11)*E22)*E21 -> 405.6350708 | F20: 405.6350708 | G20: 405.6350708 | H20: 405.6350708 | I20: 405.6350708 | J20: 405.6350708 | K20: 405.6350708
A21: m | B21: =(((1-B11)*B22/(B12*(1+B22)))^B22)*((1+B22)^-1) -> 134.0942383 | C21: 134.0942383 | D21: =(((1-D11)*D22/(D12*(1+D22)))^D22)*((1+D22)^-1) -> 134.0942383 | E21: =(((1-E11)*E22/(E12*(1+E22)))^E22)*((1+E22)^-1) -> 134.0942383 | F21: 134.0942383 | G21: 134.0942383 | H21: 134.0942383 | I21: 134.0942383 | J21: 134.0942383 | K21: 134.0942383
A22: b1 | B22: =((B12-B7-0.5*(B9^2))+SQRT((B12-B7-0.5*(B9^2))^2+2*(B9^2)*B12))/(B9^2) -> 3 | C22: 3 | D22: =((D12-D7-0.5*(D9^2))+SQRT((D12-D7-0.5*(D9^2))^2+2*(D9^2)*D12))/(D9^2) -> 3 | E22: =((E12-E7-0.5*(E9^2))+SQRT((E12-E7-0.5*(E9^2))^2+2*(E9^2)*E12))/(E9^2) -> 3 | F22: 3 | G22: 3 | H22: 3 | I22: 3 | J22: 3 | K22: 3
A24: ASSETS | B24: =B17 -> 3.006606867 | C24: 42.10174561 | D24: =D17 -> 62.46276042 | E24: =E17 -> 77.04249253 | F24: 89.37175428 | G24: 100.6793849 | H24: 111.4693805 | I24: 121.9745117 | J24: 132.3124305 | K24: 142.5469782
A25: NOM D | B25: =B6 -> 66.66666667 | C25: 66.66666667 | D25: =D6 -> 66.66666667 | E25: =E6 -> 66.66666667 | F25: 66.66666667 | G25: 66.66666667 | H25: 66.66666667 | I25: 66.66666667 | J25: 66.66666667 | K25: 66.66666667
A26: PUT | B26: =B25-B16 -> 64.10035687 | C26: 27.04233805 | D26: =D25-D16 -> 13.84567708 | E26: =E25-E16 -> 8.012544608 | F26: 5.045800686 | G26: 3.380292257 | H26: 2.374087291 | I26: 1.730709635 | J26: 1.300307765 | K26: 1.001568076
A27: EQUITY | B27: =B18 -> 0.4402970679 | C27: 2.477416992 | D27: =D18 -> 9.641770833 | E27: =E18 -> 18.38837047 | F27: 27.7508883 | G27: 37.39301046 | H27: 47.17680113 | I27: 57.03855469 | J27: 66.94607164 | K27: 76.88187964
A28: L & E | B28: =B25-B26+B27 -> 3.006606867 | C28: 42.10174561 | D28: =D25-D26+D27 -> 62.46276042 | E28: =E25-E26+E27 -> 77.04249253 | F28: 89.37175428 | G28: 100.6793849 | H28: 111.4693805 | I28: 121.9745117 | J28: 132.3124305 | K28: 142.5469782
A30: VB EQ14 | B30: (1-C11)*C5/(C12+0.5*C9^2)
A31: =A15 -> D* EQ7 | B31: (C5/C12)+((1-C10)*C14-(C5/C12))*(C14^C22)*C4^-C22
A32: D* EQ15 | B32: (C5/C12)*(1-((C5/C4)^C22)*C20)
A33: v(V) EQ16 | B33: C4+(C11*C5/C12)*(1-((C5/C4)^C22)*C19)
A34: E(V) EQ17 | B34: C4-(1-C11)*(C5/C12)*(1-((C5/C4)^C22)*C21)
A35: h | B35: (1+C22+C10*(1-C11)*C22/C11)*C21
A36: k | B36: (1+C22-(1-C10)*(1-C11)*C22)*C21
A37: m | B37: (((1-C11)*C22/(C12*(1+C22)))^C22)*((1+C22)^-1)
A38: b1 | B38: ((C12-C7-0.5*(C9^2))+SQRT((C12-C7-0.5*(C9^2))^2+2*(C9^2)*C12))/(C9^2)

Sheet BASE CASE DEBT
B1: Real Debt Strategy
A2: Figure 10.1
A3: BASE CASE
B4: ACCOUNTS | C4: REAL
A5: ASSETS | B5: =B10 -> 40 | C5: =C10+(C16*C11/C17)*(1-(C19/C10)^-C20)-C15*C19*(C19/C10)^-C20 -> 42.10174561 | E5: 10.7
A6: DEBT | B6: =B11/C17 -> 66.66666667 | C6: =(C11/C17)+((1-C15)*C19-(C11/C17))*(C19/C10)^-C20 -> 39.62432861 | E6: 10.6
A7: EQ | B7: =B5-B6 -> -26.66666667 | C7: =C10-(1-C16)*(C11/C17)+((1-C16)*(C11/C17)-C19)*((C19/C10)^-C20) -> 2.477416992 | E7: 10.8
A9: INPUT | B9: BASE
A10: NOM V | B10: 40 | C10: =B10 -> 40
A11: Coupon | B11: 4 | C11: =B11 -> 4
A12: NOM Debt | B12: =B11/C17 -> 66.66666667 | C12: 66.66666667
A13: d | C13: 0
A14: s | C14: 0.2
A15: a | C15: 0.5
A16: t | C16: 0.35
A17: r(f) | C17: 0.06
A18: OUTPUT
A19: VB | C19: =(1-C16)*(C11/C17)*(-C20/(-C20+1)) -> 32.5 | E19: 10.9
A20: b2 | C20: =(0.5-(C17-C13)/(C14^2)-SQRT((0.5-(C17-C13)/(C14^2))^2+2*C17/(C14^2))) -> -3 | E20: 10.5
A22: V* | B22: C10+(C16*C11/C17)*(1-(C19/C10)^-C20)-C15*C19*(C19/C10)^-C20
A23: D* | B23: (C11/C17)+((1-C15)*C19-(C11/C17))*(C19/C10)^-C20
A24: E* | B24: C10-(1-C16)*(C11/C17)+((1-C16)*(C11/C17)-C19)*((C19/C10)^-C20)
A25: VB | B25: (1-C16)*(C11/C17)*(-C20/(-C20+1))
A26: b2 | B26: (0.5-(C17-C13)/(C14^2)-SQRT((0.5-(C17-C13)/(C14^2))^2+2*C17/(C14^2)))

Sheet Strategy a
B1: Real Debt Strategy
A2: Figure 10.2
A3: BASE CASE
B4: ACCOUNTS | C4: REAL
A5: ASSETS | B5: =B10 -> 35 | C5: =C10+(C16*C11/C17)*(1-(C19/C10)^-C20)-C15*C19*(C19/C10)^-C20 -> 26.64070092 | E5: 10.7
A6: DEBT | B6: =B11/C17 -> 66.66666667 | C6: =(C11/C17)+((1-C15)*C19-(C11/C17))*(C19/C10)^-C20 -> 26.30026118 | E6: 10.6
A7: EQ | B7: =B5-B6 -> -31.66666667 | C7: =C10-(1-C16)*(C11/C17)+((1-C16)*(C11/C17)-C19)*((C19/C10)^-C20) -> 0.3404397473 | E7: 10.8
A9: INPUT | B9: BASE
A10: NOM V | B10: 35 | C10: =B10 -> 35
A11: Coupon | B11: 4 | C11: =B11 -> 4
A12: NOM Debt | B12: =B11/C17 -> 66.66666667 | C12: 66.66666667
A13: d | C13: 0
A14: s | C14: 0.2
A15: a | C15: 0.5
A16: t | C16: 0.35
A17: r(f) | C17: 0.06
A18: OUTPUT
A19: VB | C19: =(1-C16)*(C11/C17)*(-C20/(-C20+1)) -> 32.5 | E19: 10.9
A20: b2 | C20: =(0.5-(C17-C13)/(C14^2)-SQRT((0.5-(C17-C13)/(C14^2))^2+2*C17/(C14^2))) -> -3 | E20: 10.5
A22: V* | B22: C10+(C16*C11/C17)*(1-(C19/C10)^-C20)-C15*C19*(C19/C10)^-C20
A23: D* | B23: (C11/C17)+((1-C15)*C19-(C11/C17))*(C19/C10)^-C20
A24: E* | B24: C10-(1-C16)*(C11/C17)+((1-C16)*(C11/C17)-C19)*((C19/C10)^-C20)
A25: VB | B25: (1-C16)*(C11/C17)*(-C20/(-C20+1))
A26: b2 | B26: (0.5-(C17-C13)/(C14^2)-SQRT((0.5-(C17-C13)/(C14^2))^2+2*C17/(C14^2)))

Sheet Fair Strategy
F1: Real Debt Strategy i
A2: Figure 10.10
A3: BASE CASE
B4: ACCOUNTS | C4: REAL 1 | D4: REAL 2 | E4: REAL 3 | F4: REAL 4 | G4: REAL 5 | H4: REAL 6 | I4: REAL 7
A5: ASSETS | B5: =B10 -> 40 | C5: =C10+(C16*C11/C17)*(1-(C19/C10)^-C20)-C15*C19*(C19/C10)^-C20 -> 42.10174561 | D5: =D10+(D16*D11/D17)*(1-(D19/D10)^-D20)-D15*D19*(D19/D10)^-D20 -> 47.10649201 | E5: 46.33979856 | F5: 45.24165387 | G5: 44.35608932 | H5: 43.08449949 | I5: 42.05642535 | J5: V*
A6: DEBT | B6: =B11/C17 -> 66.66666667 | C6: =(C11/C17)+((1-C15)*C19-(C11/C17))*(C10^C20)*C19^-C20 -> 39.62432861 | D6: =(D11/D17)+((1-D15)*D19-(D11/D17))*(D10^D20)*D19^-D20 -> 44.81062354 | E6: 43.99073002 | F6: 42.83331647 | G6: 41.91373969 | H6: 40.61360683 | I6: 39.579022 | J6: D*
A7: EQ | B7: =B5-B6 -> -26.66666667 | C7: =C10-(1-C16)*(C11/C17)+((1-C16)*(C11/C17)-C19)*((C19/C10)^-C20) -> 2.477416992 | D7: =D10-(1-D16)*(D11/D17)+((1-D16)*(D11/D17)-D19)*((D19/D10)^-D20) -> 2.295868471 | E7: 2.349068543 | F7: 2.408337396 | G7: 2.442349628 | H7: 2.470892655 | I7: 2.477403345 | J7: E*
C8: WE CHOOSE | D8: YOU CHOOSE | E8: NEGOTIATE | F8: NEGOTIATE | G8: NEGOTIATE | H8: NEGOTIATE | I8: NEGOTIATE
A9: Retained Equity | C9: =C7 -> 2.477416992 | D9: =(1-D23)*D7 -> 2.295868471 | E9: 2.325577858 | F9: 2.360170648 | G9: 2.369079139 | H9: 2.372056949 | I9: 2.353533178
A10: NOM V | B10: 40 | C10: =B10 -> 40 | D10: =C10 -> 40 | E10: =D10 -> 40 | F10: 40 | G10: =B10 -> 40 | H10: 40 | I10: 40
A11: Coupon | B11: 4 | C11: =B11 -> 4 | D11: =C11 -> 4 | E11: 4 | F11: 4 | G11: 4 | H11: 4 | I11: 4
A12: NOM Debt | B12: =B11/C17 -> 66.66666667 | C12: 66.66666667 | D12: =C12 -> 66.66666667 | E12: 66.66666667 | F12: 66.66666667 | G12: 66.66666667 | H12: 66.66666667 | I12: 66.66666667
A13: d | C13: 0 | D13: =C13 -> 0 | E13: 0 | F13: 0 | G13: 0 | H13: 0 | I13: 0
A14: s | C14: 0.2 | D14: =C14 -> 0.2 | E14: 0.2 | F14: 0.2 | G14: 0.2 | H14: 0.2 | I14: 0.2
A15: a | C15: 0.5 | D15: =C15 -> 0.5 | E15: 0.5 | F15: 0.5 | G15: 0.5 | H15: 0.5 | I15: 0.5
A16: t | C16: 0.35 | D16: 0.35 | E16: 0.35 | F16: 0.35 | G16: 0.35 | H16: 0.35 | I16: 0.35
A17: r(f) | C17: 0.06 | D17: 0.06 | E17: 0.06 | F17: 0.06 | G17: 0.06 | H17: 0.06 | I17: 0.06
A18: OUTPUT
A19: VB | C19: =(1-C16)*(C11/C17)*(-C20/(-C20+1)) -> 32.5 | D19: =$B$6/D22 -> 30.03003003 | E19: =$B$6/E22 -> 30.4414003 | F19: 31.00775194 | G19: 31.44654088 | H19: 32.05128205 | I19: 32.5203252
A20: b2 | C20: =(0.5-(C17-C13)/(C14^2)-SQRT((0.5-(C17-C13)/(C14^2))^2+2*C17/(C14^2))) -> -3 | D20: =(0.5-(D17-D13)/(D14^2)-SQRT((0.5-(D17-D13)/(D14^2))^2+2*D17/(D14^2))) -> -3 | E20: -3 | F20: -3 | G20: -3 | H20: -3 | I20: -3
A21: LTV | B21: =$B$12/B5 -> 1.666666667 | C21: =$B$12/C5 -> 1.583465619 | D21: =$B$12/D5 -> 1.415233099 | E21: 1.438648176 | F21: 1.473568293 | G21: 1.502987925 | H21: 1.547346899 | I21: 1.585171971
C22: LTV MAX | D22: 2.22 | E22: 2.19 | F22: 2.15 | G22: 2.12 | H22: 2.08 | I22: 2.05
C23: SHARED EQUITY | D23: 0 | E23: 0.01 | F23: =E23+0.01 -> 0.02 | G23: =F23+0.01 -> 0.03 | H23: 0.04 | I23: 0.05
A24: DEBT LOSS + SH EQ | B24: =$B$6-(1-C15)*B10 -> 46.66666667 | C24: =$B$6-C6 -> 27.04233805 | D24: =$B$6-D6+D23*D7 -> 21.85604312 | E24: =$B$6-E6+E23*E7 -> 22.69942734 | F24: 23.88151694 | G24: 24.82619747 | H24: 26.15189554 | I24: 27.21151483
A25: CHANGE DEBT LOSS | C25: =C24-$B$24 -> -19.62432861 | D25: -24.81062354 | E25: -23.96723933 | F25: -22.78514972 | G25: -21.8404692 | H25: -20.51477113 | I25: -19.45515183
A26: LTV | D26: $B$12/D5
A27: VB | D27: $B$6/D22
A28: DEBT LOSS + SH EQ | C28: $B$6-C6 | D28: $B$6-D6+D23*D7
A29: CHANGE DEBT LOSS | C29: C24-$B$24

Sheet Simple Strategy
B1: Real Debt Strategy
B2: Figure 10.11
A3: BASE CASE
B4: ACCOUNTS | C4: REAL
A5: ASSETS | B5: =B10 -> 100 | C5: =C10+(C16*C11/C17)*(1-(C19/C10)^-C20)-C15*C19*(C19/C10)^-C20 -> 92.96875 | E5: 10.7
A6: DEBT | B6: =B11/C17 -> 75 | C6: =(C11/C17)+((1-C15)*C19-(C11/C17))*(C19/C10)^-C20 -> 53.90625 | E6: 10.6
A7: EQ | B7: =B5-B6 -> 25 | C7: =C10-(1-C16)*(C11/C17)+((1-C16)*(C11/C17)-C19)*((C19/C10)^-C20) -> 39.0625 | E7: 10.8
A9: INPUT | B9: BASE
A10: NOM V | B10: 100 | C10: =B10 -> 100
A11: Coupon | B11: 3 | C11: =B11 -> 3
A12: NOM Debt | B12: =B11/C17 -> 75 | C12: 75
A13: d | C13: 0.04
A14: s | C14: 0.2
A15: a | C15: 0.5
A16: t | C16: 0
A17: r(f) | C17: 0.04
A18: OUTPUT
A19: VB | C19: =(1-C16)*(C11/C17)*(-C20/(-C20+1)) -> 37.5 | E19: 10.9
A20: b2 | C20: =(0.5-(C17-C13)/(C14^2)-SQRT((0.5-(C17-C13)/(C14^2))^2+2*C17/(C14^2))) -> -1 | E20: 10.5
A22: V* | B22: C10+(C16*C11/C17)*(1-(C19/C10)^-C20)-C15*C19*(C19/C10)^-C20
A23: D* | B23: (C11/C17)+((1-C15)*C19-(C11/C17))*(C19/C10)^-C20
A24: E* | B24: C10-(1-C16)*(C11/C17)+((1-C16)*(C11/C17)-C19)*((C19/C10)^-C20)
A25: VB | B25: (1-C16)*(C11/C17)*(-C20/(-C20+1))
A26: b2 | B26: (0.5-(C17-C13)/(C14^2)-SQRT((0.5-(C17-C13)/(C14^2))^2+2*C17/(C14^2)))

Sheet Exercise 2.1
A1: PUT BINOMIAL MODEL
A2: EXERCISE 2.1
A3: s | B3: 0.3
A4: INTEREST RATE | B4: 0.05
A5: TIME | B5: 1
A6: EXERCISE=K | B6: 42
A7: u | B7: =EXP(B3*SQRT(B5)) -> 1.349858808 | D7: B7= | E7: EXP(B3*SQRT(B5))
A8: d | B8: =1/B7 -> 0.7408182207 | D8: B8= | E8: 1/B7
A9: a | B9: =EXP(B4*B5) -> 1.051271096 | D9: B9= | E9: EXP(B4*B5)
A10: p | B10: =(B9-B8)/(B7-B8) -> 0.5097408652 | D10: B10= | E10: (B9-B8)/(B7-B8)
A11: SQUARE FEET | B11: 100000
A13: PERIOD 0 | B13: PERIOD 1
A16: RENT/SQ FT
B17: =$B$7*$A$18 -> 56.69406992 | D17: B17= | E17: $B$7*$A$18
A18: 42
B19: =$B$8*$A$18 -> 31.11436527 | D19: B19= | E19: $B$8*$A$18
A21: PUT OPTION VALUE/SQ FT
B22: =IF((B17<$B$6),(B17-$B$6),0) -> 0 | D22: B22= | E22: IF((B17<$B$6),(B17-$B$6),0)
A23: =EXP(-B4*B5)*(B22*$B$10+(1-$B$10)*B24) -> 5.076503942 | D23: A23= | E23: EXP(-B4*B5)*(B22*$B$10+(1-$B$10)*B24)
B24: =IF((B19<$B$6),-(B19-$B$6),0) -> 10.88563473 | D24: B24= | E24: IF((B19<$B$6),-(B19-$B$6),0)
A26: TOTAL PUT OPTION VALUE
A27: =B11*A23 -> 507650.3942 | D27: A27= | E27: B11*A23
A29: PV | B29: =EXP(-B4*B5) -> 0.9512294245 | E29: EXP(-B4*B5)

Sheet Exercise 2.2
A1: One-Step Binomial Call
A2: Exercise 2.2
A3: VOLATILITY | B3: 0.3
A4: RATE | B4: 0.05
A5: TIME | B5: 1
A6: up | B6: =EXP(B3*SQRT(B5)) -> 1.349858808
A7: down | B7: =1/B6 -> 0.7408182207
A8: probability | B8: =(EXP(B4*B5)-B7)/(B6-B7) -> 0.5097408652
A10: =A6 -> up | B10: EXP(B3*SQRT(B5))
A11: =A7 -> down | B11: 1/B6
A12: =A8 -> probability | B12: (EXP(B4*B5)-B7)/(B6-B7)
A15: Time | B15: 0 | C15: 1
A17: Expected | C17: =B18*B6 -> 94490.11653 | D17: u
A18: Earnings | B18: 70000
C19: =B18*B7 -> 51857.27545 | D19: d
C21: =B22 -> 75000 | D21: u
A22: Cost | B22: 75000
C23: =B22 -> 75000 | D23: d
C25: =MAX((C17-C21),0) -> 19490.11653 | D25: u
A26: Call Value | B26: =EXP(-B4*B5)*(C25*B8+(1-B8)*C27) -> 9450.37764
C27: =MAX((C19-C23),0) -> 0 | D27: d
A28: C25= | C28: MAX((C17-C21),0)
A29: C27= | C29: MAX((C19-C23),0)
A30: B26= | B30: EXP(-B4*B5)*(C25*B8+(1-B8)*C27)

Sheet Exercise 2.3
A1: One-Step Binomial Call
A2: Exercise 2.3
A3: VOLATILITY | B3: 0.4
A4: RATE | B4: 0.1
A5: TIME | B5: 1
A6: up | B6: =EXP(B3*SQRT(B5)) -> 1.491824698
A7: down | B7: =1/B6 -> 0.670320046
A8: probability | B8: =(EXP(B4*B5)-B7)/(B6-B7) -> 0.5293346437
A10: =A6 -> up | B10: EXP(B3*SQRT(B5))
A11: =A7 -> down | B11: 1/B6
A12: =A8 -> probability | B12: (EXP(B4*B5)-B7)/(B6-B7)
A15: Time | B15: 0 | C15: 1
C17: =B18*B6 -> 62.6566373 | D17: u
A18: Rent | B18: 42
C19: =B18*B7 -> 28.15344193 | D19: d
C21: =B22 -> 45 | D21: u
A22: Exercise Price | B22: 45
C23: =B22 -> 45 | D23: d
C25: =MAX((C17-C21),0) -> 17.6566373 | D25: u
A26: Call Value | B26: =EXP(-B4*B5)*(C25*B8+(1-B8)*C27) -> 8.456854647
C27: =MAX((C19-C23),0) -> 0 | D27: d
A28: C25= | C28: MAX((C17-C21),0)
A29: C27= | C29: MAX((C19-C23),0)
A30: B26= | B30: EXP(-B4*B5)*(C25*B8+(1-B8)*C27)
A31: SF | B31: 100000
A32: Total Call Option Value | B32: =B26*B31 -> 845685.4647

Sheet Problem 2.4
A1: DEFERRAL OPTION
A2: Problem 2.4
A5: ASSET VALUE | B5: 500
A6: INVESTMENT COST | B6: 450
A7: RISKLESS RATE | B7: 0.04
A8: DIVIDEND | B8: 0.04
A9: TIME / YEARS | B9: 5
A10: VOLATILITY | B10: 0.2
A11: CALL PRICE | B11: =B5*B15*EXP(-B8*B9)-B6*B16*EXP(-B7*B9) -> 91.14566472 | C11: B5*B15*EXP(-B8*B9)-B6*B16*EXP(-B7*B9)
A13: d1 | B13: =(LN(B5/B6)+(B7-B8+B10^2/2)*B9)/(B10*SQRT(B9)) -> 0.4592000729 | C13: (LN(B5/B6)+(B7-B8+B10^2/2)*B9)/(B10*SQRT(B9))
A14: d2 | B14: =B13-B10*SQRT(B9) -> 0.01198647741 | C14: B13-B10*SQRT(B9)
A15: N(d1) | B15: =NORMSDIST(B13) -> 0.6769547509 | C15: NORMSDIST(B13)
A16: N(d2) | B16: =NORMSDIST(B14) -> 0.5047817981 | C16: NORMSDIST(B14)
A18: SF | B18: 100000
A19: TOTAL REAL CALL OPTION VALUE | B19: =B11*B18 -> 9114566.472
A20: INTRINSIC REAL CALL VALUE | B20: =(B5-B6)*B18 -> 5000000

Sheet Problem 2.5
A1: DEFERRAL OPTION
A3: Problem 2.5
A5: ASSET VALUE | B5: 1200
A6: INVESTMENT COST | B6: 1338
A7: RISKLESS RATE | B7: 0.05
A8: DIVIDEND | B8: 0
A9: TIME / YEARS | B9: 2
A10: VOLATILITY | B10: 0.5
A11: CALL PRICE | B11: =B5*B15*EXP(-B8*B9)-B6*B16*EXP(-B7*B9) -> 327.7550195 | C11: B5*B15*EXP(-B8*B9)-B6*B16*EXP(-B7*B9)
A13: d1 | B13: =(LN(B5/B6)+(B7-B8+B10^2/2)*B9)/(B10*SQRT(B9)) -> 0.3410313711 | C13: (LN(B5/B6)+(B7-B8+B10^2/2)*B9)/(B10*SQRT(B9))
A14: d2 | B14: =B13-B10*SQRT(B9) -> -0.3660754101 | C14: B13-B10*SQRT(B9)
A15: N(d1) | B15: =NORMSDIST(B13) -> 0.6334600174 | C15: NORMSDIST(B13)
A16: N(d2) | B16: =NORMSDIST(B14) -> 0.3571544029 | C16: NORMSDIST(B14)
A18: Assumption
A19: This investment opportunity is a European, not an American, call option.

Sheet Problem 2.6
A1: MARGRABE EXCHANGE
A2: Problem 2.6
A3: RESIDENTIAL TENANTS | B3: 1600000
A4: RETAIL TENANTS | B4: 1750000
A5: TENANT SWITCHING TIME | B5: 1
A7: BENEFIT YIELD | B7: 0.04
A8: COST YIELD | B8: 0.04
A9: BENEFIT VOLATILITY | B9: 0.2
A10: COST VOLATILITY | B10: 0.2
A11: EXCHANGE VOLATILITY | B11: =SQRT(B9^2 + B10^2 -2*B13*B10*B9) -> 0.2 | C11: SQRT(B9^2 + B10^2 -2*B13*B10*B9)
A13: CORRELATION | B13: 0.5
A14: EXCHANGE CALL OPTION VALUE | B14: =B3*B18*EXP(-B7*B5)-B4*B19*EXP(-B8*B5) -> 68736.5406 | C14: B3*B18*EXP(-B7*B5)-B4*B19*EXP(-B8*B5)
A16: d1 | B16: =(LN(B3/B4)+(B8-B7+(B11^2)/2)*B5)/(B11*SQRT(B5)) -> -0.3480607934 | C16: (LN(B3/B4)+(B8-B7+(B11^2)/2)*B5)/(B11*SQRT(B5))
A17: d2 | B17: =B16-B11*SQRT(B5) -> -0.5480607934 | C17: B16-B11*SQRT(B5)
A18: N(d1) | B18: =NORMSDIST(B16) -> 0.3638972639 | C18: NORMSDIST(B16)
A19: N(d2) | B19: =NORMSDIST(B17) -> 0.2918250801 | C19: NORMSDIST(B17)
A21: Margrabe Exchange Real Option is worth | C21: =B14 -> 68736.5406
A22: ASSUMES: volatilities and correlation are constant, this a European option,
A23: Several assumptions required.
A25: Investment in facility for retail tenants worth | C25: =B4-C28 -> 50000
A26: Option to switch tenants in one year worth | C26: =B14 -> 68736.5406
A27: So value of modular facility worth | C27: =C25+C26 -> 118736.5406
A28: Investment cost | C28: 1700000

Sheet Exercise 3.1
A1: REAL OPTION PAYOFFS
A2: Exercise 3.1
A3: OWN ASSET-DEBT | B3: =B12-$B$6 -> -150 | C3: =C12-$B$6 -> -125 | D3: -100 | E3: -75 | F3: -50 | G3: -25 | H3: 0 | I3: 25 | J3: 50 | K3: 75 | L3: 100 | M3: 125 | N3: 150
A4: WRITE REAL CALL INTRINSIC | B4: =IF(B3>0,-B3+$B$7,$B$7) -> 50 | C4: =IF(C3>0,-C3+$B$7,$B$7) -> 50 | D4: 50 | E4: 50 | F4: 50 | G4: 50 | H4: 50 | I4: 25 | J4: 0 | K4: -25 | L4: -50 | M4: -75 | N4: -100
A5: STRATEGY RESULT | B5: =B3+B4 -> -100 | C5: =C3+C4 -> -75 | D5: -50 | E5: -25 | F5: 0 | G5: 25 | H5: 50 | I5: 50 | J5: 50 | K5: 50 | L5: 50 | M5: 50 | N5: 50
A6: Debt, K | B6: 150 | E6: =D6 -> 
A7: Option cost, y | B7: =$B$33 -> 50 | C7: Assumed
A8: Own asset subject to debt K, give investor an option to buy net asset at nil cost, for immediate payment of option premium of y.
A9: STRATEGY RESULT equals write real put on net asset value.
A10: WRITE REAL CALL INTRINSIC | B10: IF(B3>0,-B3+$B$7,$B$7)
A11: STRATEGY RESULT | B11: B3+B4 | C11: MIN(B12-$B$6+$B$7,$B$7)
A12: ASSET VALUE | B12: 0 | C12: =B12+25 -> 25 | D12: =C12+25 -> 50 | E12: 75 | F12: 100 | G12: 125 | H12: 150 | I12: 175 | J12: 200 | K12: 225 | L12: 250 | M12: 275 | N12: 300
A13: =A5 -> STRATEGY RESULT | B13: =MIN(B12-$B$6+$B$7,$B$7) -> -100 | C13: =MIN(C12-$B$6+$B$7,$B$7) -> -75 | D13: -50 | E13: -25 | F13: 0 | G13: 25 | H13: 50 | I13: 50 | J13: 50 | K13: 50 | L13: 50 | M13: 50 | N13: 50
A33: Option cost, y | B33: 50

Sheet Exercise 3.2
A1: REAL OPTION PAYOFFS
A2: Exercise 3.2 | B2: 0 | C2: =B2+25 -> 25 | D2: =C2+25 -> 50 | E2: 75 | F2: 100 | G2: 125 | H2: 150 | I2: 175 | J2: 200 | K2: 225 | L2: 250 | M2: 275 | N2: 300
A3: OWN ASSET-DEBT | B3: =0-$B$6 -> -150 | C3: =B3+25 -> -125 | D3: -100 | E3: -75 | F3: -50 | G3: -25 | H3: 0 | I3: 25 | J3: 50 | K3: 75 | L3: 100 | M3: 125 | N3: 150
A4: BUY REAL PUT INTRINSIC | B4: =IF(B3<0,-B3-$B$7,-$B$7) -> 75 | C4: =IF(C3<0,-C3-$B$7,-$B$7) -> 50 | D4: 25 | E4: 0 | F4: -25 | G4: -50 | H4: -75 | I4: -75 | J4: -75 | K4: -75 | L4: -75 | M4: -75 | N4: -75
A5: STRATEGY RESULT | B5: =B4+B3 -> -75 | C5: =C4+C3 -> -75 | D5: -75 | E5: -75 | F5: -75 | G5: -75 | H5: -75 | I5: -50 | J5: -25 | K5: 0 | L5: 25 | M5: 50 | N5: 75
A6: Debt, K | B6: 150 | E6: =D6 -> 
A7: Option cost, y | B7: =B33 -> 75
A8: Own asset subject to debt K, buy right to sell asset at debt amount K, for immediate payment of option premium of y.
A9: STRATEGY RESULT equals buy real call on net asset value at nil exercise cost.
A10: =A4 -> BUY REAL PUT INTRINSIC | B10: IF(B3<0,-B3-$B$7,-$B$7)
A11: =A5 -> STRATEGY RESULT | B11: B3+B4
A33: Option cost, y | B33: 75

Sheet Exercise 3.3
A1: SALFORD TRIATHLON ARRANGEMENT
A2: Exercise 3.3
A3: POUNDS
A4: REVENUE | B4: 100
A5: FIXED COSTS | B5: 50000
A6: VARIABLE COSTS | B6: 50
A7: TRIATHLETES | B7: 0 | C7: =B7+200 -> 200 | D7: =C7+200 -> 400 | E7: 600 | F7: 800 | G7: 1000 | H7: 1200 | I7: 1400 | J7: 1600 | K7: 1800 | L7: 2000 | M7: 2200 | N7: 2400 | O7: 2600
A9: NO ARRANGEMENT
A10: REVENUE | B10: =$B$4*B7 -> 0 | C10: 20000 | D10: 40000 | E10: 60000 | F10: 80000 | G10: 100000 | H10: 120000 | I10: 140000 | J10: 160000 | K10: 180000 | L10: 200000 | M10: 220000 | N10: 240000 | O10: 260000 | P10: $B$4*P7
A11: FIXED COSTS | B11: =$B$5 -> 50000 | C11: 50000 | D11: 50000 | E11: 50000 | F11: 50000 | G11: 50000 | H11: 50000 | I11: 50000 | J11: 50000 | K11: 50000 | L11: 50000 | M11: 50000 | N11: 50000 | O11: 50000 | P11: $B$5
A12: VARIABLE COSTS | B12: =$B$6*B7 -> 0 | C12: 10000 | D12: 20000 | E12: 30000 | F12: 40000 | G12: 50000 | H12: 60000 | I12: 70000 | J12: 80000 | K12: 90000 | L12: 100000 | M12: 110000 | N12: 120000 | O12: 130000 | P12: $B$6*P7
A13: PROFIT | B13: =B10-B11-B12 -> -50000 | C13: =C10-C11-C12 -> -40000 | D13: =D10-D11-D12 -> -30000 | E13: -20000 | F13: -10000 | G13: 0 | H13: 10000 | I13: 20000 | J13: 30000 | K13: 40000 | L13: 50000 | M13: 60000 | N13: 70000 | O13: 80000 | P13: P10-P11-P12
A15: WITH SALFORD COUNCIL ARRANGEMENT
A16: REVENUE | B16: =B4 -> 100
A17: FIXED COSTS | B17: =B5-B19 -> 10000
A18: VARIABLE COSTS | B18: 50
A19: FEE | B19: =B55 -> 40000
A20: SALFORD SHARE | B20: =B56 -> 0.75
A21: SHARE START | B21: =B57 -> 100000
A23: REVENUE | B23: =$B$16*B26 -> 0 | C23: 20000 | D23: 40000 | E23: 60000 | F23: 80000 | G23: 100000 | H23: 120000 | I23: 140000 | J23: 160000 | K23: 180000 | L23: 200000 | M23: 220000 | N23: 240000 | O23: 260000 | P23: $B$16*P26
A24: FIXED COSTS | B24: =$B$17 -> 10000 | C24: 10000 | D24: 10000 | E24: 10000 | F24: 10000 | G24: 10000 | H24: 10000 | I24: 10000 | J24: 10000 | K24: 10000 | L24: 10000 | M24: 10000 | N24: 10000 | O24: 10000 | P24: $B$17
A25: VARIABLE COSTS | B25: =$B$6*B26 -> 0 | C25: 10000 | D25: 20000 | E25: 30000 | F25: 40000 | G25: 50000 | H25: 60000 | I25: 70000 | J25: 80000 | K25: 90000 | L25: 100000 | M25: 110000 | N25: 120000 | O25: 130000 | P25: $B$6*P26
A26: TRIATHLETES | B26: =B7 -> 0 | C26: =C7 -> 200 | D26: 400 | E26: 600 | F26: 800 | G26: 1000 | H26: 1200 | I26: 1400 | J26: 1600 | K26: 1800 | L26: 2000 | M26: 2200 | N26: 2400 | O26: 2600
A27: SALFORD SHARE | B27: =IF(B23>$B$21,$B$20*B23,0) -> 0 | C27: 0 | D27: 0 | E27: 0 | F27: 0 | G27: 0 | H27: 90000 | I27: 105000 | J27: 120000 | K27: 135000 | L27: 150000 | M27: 165000 | N27: 180000 | O27: 195000 | P27: IF(P23>$B$21,$B$20*P23,0)
A28: PROFIT SHARING | B28: =B23-B24-B25-B27 -> -10000 | C28: =C23-C24-C25-C27 -> 0 | D28: 10000 | E28: 20000 | F28: 30000 | G28: 40000 | H28: -40000 | I28: -45000 | J28: -50000 | K28: -55000 | L28: -60000 | M28: -65000 | N28: -70000 | O28: -75000 | P28: P23-P24-P25-P27
A29: PROFIT, NO SHARE | B29: =B13 -> -50000 | C29: -40000 | D29: -30000 | E29: -20000 | F29: -10000 | G29: 0 | H29: 10000 | I29: 20000 | J29: 30000 | K29: 40000 | L29: 50000 | M29: 60000 | N29: 70000 | O29: 80000
A55: FEE | B55: 40000
A56: SALFORD SHARE | B56: 0.75
A57: SHARE START | B57: 100000

Sheet Problem 3.4
A1: REAL OPTION PAYOFFS
A2: Problem 3.4 | B2: 0 | C2: =B2+25 -> 25 | D2: =C2+25 -> 50 | E2: 75 | F2: 100 | G2: 125 | H2: 150 | I2: 175 | J2: 200 | K2: 225 | L2: 250 | M2: 275 | N2: 300 | O2: 325 | P2: 350 | Q2: 375 | R2: 400 | S2: 425 | T2: 450 | U2: 475 | V2: 500
A3: NET ASSET VALUE | B3: =B2-$B$7 -> -300 | C3: =C2-$B$7 -> -275 | D3: -250 | E3: -225 | F3: -200 | G3: -175 | H3: -150 | I3: -125 | J3: -100 | K3: -75 | L3: -50 | M3: -25 | N3: 0 | O3: 25 | P3: 50 | Q3: 75 | R3: 100 | S3: 125 | T3: 150 | U3: 175 | V3: 200
A4: REQUIRE USE OF NET ASSET | B4: =-B3 -> 300 | C4: =-C3 -> 275 | D4: 250 | E4: 225 | F4: 200 | G4: 175 | H4: 150 | I4: 125 | J4: 100 | K4: 75 | L4: 50 | M4: 25 | N4: 0 | O4: -25 | P4: -50 | Q4: -75 | R4: -100 | S4: -125 | T4: -150 | U4: -175 | V4: -200
A5: BUY REAL CALL INTRINSIC | B5: =IF(B3>0,B3-$B$8,-$B$8) -> -75 | C5: =IF(C3>0,C3-$B$8,-$B$8) -> -75 | D5: -75 | E5: -75 | F5: -75 | G5: -75 | H5: -75 | I5: -75 | J5: -75 | K5: -75 | L5: -75 | M5: -75 | N5: -75 | O5: -50 | P5: -25 | Q5: 0 | R5: 25 | S5: 50 | T5: 75 | U5: 100 | V5: 125
A6: STRATEGY RESULT | B6: =B4+B5 -> 225 | C6: =C4+C5 -> 200 | D6: 175 | E6: 150 | F6: 125 | G6: 100 | H6: 75 | I6: 50 | J6: 25 | K6: 0 | L6: -25 | M6: -50 | N6: -75 | O6: -75 | P6: -75 | Q6: -75 | R6: -75 | S6: -75 | T6: -75 | U6: -75 | V6: -75
A7: Debt, K | B7: 300 | E7: =D7 -> 
A8: Option cost, y | B8: =B33 -> 75
A9: Require use of asset subject to debt K, buy option to buy net asset at nil cost, for immediate payment of option premium of y.
A10: STRATEGY RESULT equals buy real put on net asset value.
A11: =A5 -> BUY REAL CALL INTRINSIC | B11: IF(B3>0,B3-$B$8,-$B$8)
A12: STRATEGY RESULT | B12: B4+B5
A33: Option cost, y | B33: 75

Sheet Problem 3.5
A1: Problem 3.5 | B1: REAL OPTION PAYOFFS
A2: OWN ASSET-DEBT | B2: =B16-$B$8 -> -500 | C2: -400 | D2: -300 | E2: -200 | F2: -100 | G2: 0 | H2: 100 | I2: 200 | J2: 300 | K2: 400 | L2: 500
A3: WRITE REAL CALL AT K2 INTRINSIC | B3: =IF(B2>$B$6,$B$6-B2+$B$9,$B$9) -> 25 | C3: =IF(C2>$B$6,$B$6-C2+$B$9,$B$9) -> 25 | D3: 25 | E3: 25 | F3: 25 | G3: 25 | H3: 25 | I3: -75 | J3: -175 | K3: -275 | L3: -375
A4: BUY REAL PUT AT K1 INTRINSIC | B4: =IF(B2<$B$7,-B2-$B$7-$B$10,-$B$10) -> 475 | C4: =IF(C2<$B$7,-C2-$B$7-$B$10,-$B$10) -> 375 | D4: 275 | E4: 175 | F4: 75 | G4: -25 | H4: -25 | I4: -25 | J4: -25 | K4: -25 | L4: -25
A5: STRATEGY RESULT | B5: =B2+B3+B4 -> 0 | C5: =C2+C3+C4 -> 0 | D5: 0 | E5: 0 | F5: 0 | G5: 0 | H5: 100 | I5: 100 | J5: 100 | K5: 100 | L5: 100
A6: K2 | B6: 100
A7: K1 | B7: 0
A8: Debt, K | B8: 500 | E8: =D8 -> 
A9: Option cost, y2 | B9: 25
A10: Option cost, y1 | B10: 25
A11: Own asset subject to debt K, buy a "costless protective put" (=protective collar).
A12: STRATEGY RESULT equals real collar.
A13: =A3 -> WRITE REAL CALL AT K2 INTRINSIC | B13: IF(B2>$B$6,$B$6-B2+$B$9,$B$9)
A14: =A4 -> BUY REAL PUT AT K1 INTRINSIC | B14: IF(B2<$B$7,-B2-$B$7-$B$10,-$B$10)
A15: STRATEGY RESULT | B15: B2+B3+B4
A16: ASSET VALUE | B16: 0 | C16: =B16+100 -> 100 | D16: =C16+100 -> 200 | E16: 300 | F16: 400 | G16: 500 | H16: 600 | I16: 700 | J16: 800 | K16: 900 | L16: 1000

Sheet Problem 3.6
A1: MARIA KNOX: INSURING HER EARLY CAREER EARNINGS IN A CONTINGENT CLAIM ARRANGEMENT
A2: Problem 3.6
A3: MARIA STARTING SALARY | B3: 30000 | C3: =B3+10000 -> 40000 | D3: =C3+10000 -> 50000 | E3: 60000 | F3: 70000 | G3: 80000 | H3: 90000 | I3: 100000 | J3: 110000 | K3: 120000 | L3: 130000 | M3: 140000 | N3: 150000 | O3: 160000
A5: FUD BONUS INSURANCE PREMIUM | B5: =B41 -> 20000
A6: BONUS | B6: =B42 -> 30000
A7: LOW PAY BARRIER | B7: =B43 -> 50000
A8: HIGH PAY BARRIER | B8: =B44 -> 150000
A10: LOW PAY BONUS | B10: =IF(B3<$B$7,$B$6,0) -> 30000 | C10: =IF(C3<$B$7,$B$6,0) -> 30000 | D10: 0 | E10: 0 | F10: 0 | G10: 0 | H10: 0 | I10: 0 | J10: 0 | K10: 0 | L10: 0 | M10: 0 | N10: 0 | O10: 0
A11: HIGH PAY BONUS | B11: =IF(B3>$B$8,$B$6,0) -> 0 | C11: =IF(C3>$B$8,$B$6,0) -> 0 | D11: 0 | E11: 0 | F11: 0 | G11: 0 | H11: 0 | I11: 0 | J11: 0 | K11: 0 | L11: 0 | M11: 0 | N11: 0 | O11: 30000
A12: TOTAL PAY + BONUS-FUD | B12: =B3+B10+B11-$B$5 -> 40000 | C12: 50000 | D12: 30000 | E12: 40000 | F12: 50000 | G12: 60000 | H12: 70000 | I12: 80000 | J12: 90000 | K12: 100000 | L12: 110000 | M12: 120000 | N12: 130000 | O12: 170000
A13: =A3 -> MARIA STARTING SALARY | B13: =B3 -> 30000 | C13: 40000 | D13: 50000 | E13: 60000 | F13: 70000 | G13: 80000 | H13: 90000 | I13: 100000 | J13: 110000 | K13: 120000 | L13: 130000 | M13: 140000 | N13: 150000 | O13: 160000
A41: =A5 -> FUD BONUS INSURANCE PREMIUM | B41: 20000
A42: =A6 -> BONUS | B42: 30000
A43: =A7 -> LOW PAY BARRIER | B43: 50000
A44: =A8 -> HIGH PAY BARRIER | B44: 150000

Sheet Exercise 4.1
A1: Perpetual American Option
A2: Exercise 4.1
A3: V | B3: 500
A4: K | B4: 450
A5: s | B5: 0.2
A6: r | B6: 0.04
A7: d | B7: 0.04
A8: ROV | B8: =IF(B3<B12,(B12-B4)*(B3/B12)^B14,B10) -> 138.8888889 | C8: IF(B3<B12,(B12-B4)*(B3/B12)^B14,B10)
A9: ROV | B9: =IF(B3<B12,B13*(B3^B14),B10) -> 138.8888889 | C9: IF(B3<B12,B13*(B3^B14),B10)
A10: V-K | B10: =B3-B4 -> 50 | C10: B3-B4
A11: F'(V) | B11: =IF(B3<B12,B13*B14*(B3^(B14-1)),1) -> 0.5555555556 | C11: IF(B3<B12,B13*B14*(B3^(B14-1)),1)
A12: V* | B12: =(B14/(B14-1))*B4 -> 900 | C12: (B14/(B14-1))*B4
A13: A | B13: =(B12-B4)/(B12^B14) -> 0.0005555555556 | C13: (B12-B4)/(B12^B14)
A14: b1 | B14: =0.5-(B6-B7)/(B5^2)+SQRT(((B6-B7)/(B5^2)-0.5)^2 + 2*B6/(B5^2)) -> 2
A15: SF | B15: 100000
A17: ROV | B17: =B9*B15 -> 13888888.89
A18: V* TOTAL | B18: =B12*B15 -> 90000000

Sheet Exercise 4.2
A1: Perpetual American Option
A2: Exercise 4.2
A3: V | B3: 750
A4: K | B4: 850
A5: s | B5: 0.5
A6: r | B6: 0.04
A7: d | B7: 0.04
A8: ROV | B8: =IF(B3<B12,(B12-B4)*(B3/B12)^B14,B10) -> 385.5514036 | C8: IF(B3<B12,(B12-B4)*(B3/B12)^B14,B10)
A9: ROV | B9: =IF(B3<B12,B13*(B3^B14),B10) -> 385.5514036 | C9: IF(B3<B12,B13*(B3^B14),B10)
A10: V-K | B10: =B3-B4 -> -100 | C10: B3-B4
A11: F'(V) | B11: =IF(B3<B12,B13*B14*(B3^(B14-1)),1) -> 0.6451475043 | C11: IF(B3<B12,B13*B14*(B3^(B14-1)),1)
A12: V* | B12: =(B14/(B14-1))*B4 -> 4183.549772 | C12: (B14/(B14-1))*B4
A13: A | B13: =(B12-B4)/(B12^B14) -> 0.09504472181 | C13: (B12-B4)/(B12^B14)
A14: b1 | B14: =0.5-(B6-B7)/(B5^2)+SQRT(((B6-B7)/(B5^2)-0.5)^2 + 2*B6/(B5^2)) -> 1.254983444 | C14: 0.5-(B6-B7)/(B5^2)+SQRT(((B6-B7)/(B5^2)-0.5)^2 + 2*B6/(B5^2))
A16: ODE | B16: =0.5*(B5^2)*(B3^2)*B17+(B6-B7)*B3*B11-B6*B9 -> 0
A17: F''(V) | B17: =IF(B3<B12,B13*B14*(B14-1)*(B3^(B14-2)),0) -> 0.0002193359096
A18: F'(V*) | B18: =B13*B14*(B12^(B14-1)) -> 1
A19: F(V*) | B19: =IF(B3<B12,B13*(B12^B14),B10) -> 3333.549772
A20: V*-K | B20: =B12-B4 -> 3333.549772
A21: SF | B21: 2000
A22: TOTAL ROV | B22: =B9*B21 -> 771102.8073
A23: COST | B23: 200000
A25: SECURITY ANALYSIS OF CITY LTD.
A26: ASSETS | B26: LIAB
A27: =750000-B23 -> 550000 | B27: 500000
A28: =$B$22 -> 771102.8073 | B28: =A29-B27 -> 821102.8073 | C28: NET WORTH
A29: =A27+A28 -> 1321102.807
A31: SHARES | B31: 1000000
B32: =B28/B31 -> 0.8211028073 | C32: NET REAL OPTION VALUE/SHARE

Sheet Exercise 4.3
A1: Perpetual American Option
A2: Exercise 4.3
A3: UMIT | B3: 1.1
A4: COST | B4: 1.7
A5: s | B5: 0.2
A6: r | B6: 0.04
A7: d | B7: 0.04
A8: ROV | B8: =IF(B3<B12,(B12-B4)*(B3/B12)^B14,B10) -> 0.1779411765 | C8: IF(B3<B12,(B12-B4)*(B3/B12)^B14,B10)
A9: F(V) | B9: =IF(B3<B12,B13*(B3^B14),B10) -> 0.1779411765 | C9: IF(B3<B12,B13*(B3^B14),B10)
A10: V-K | B10: =B3-B4 -> -0.6 | C10: B3-B4
A11: F'(V) | B11: =IF(B3<B12,B13*B14*(B3^(B14-1)),1) -> 0.3235294118 | C11: IF(B3<B12,B13*B14*(B3^(B14-1)),1)
A12: V* | B12: =(B14/(B14-1))*B4 -> 3.4 | C12: (B14/(B14-1))*B4
A13: A | B13: =(B12-B4)/(B12^B14) -> 0.1470588235 | C13: (B12-B4)/(B12^B14)
A14: b1 | B14: =0.5-(B6-B7)/(B5^2)+SQRT(((B6-B7)/(B5^2)-0.5)^2 + 2*B6/(B5^2)) -> 2
A15: b1= | B15: 0.5-(B6-B7)/(B5^2)+SQRT(((B6-B7)/(B5^2)-0.5)^2 + 2*B6/(B5^2))
A16: ODE | B16: =0.5*(B5^2)*(B3^2)*B17+(B6-B7)*B3*B11-B6*B9 -> 0
A17: F''(V) | B17: =IF(B3<B12,B13*B14*(B14-1)*(B3^(B14-2)),0) -> 0.2941176471
A18: F'(V*) | B18: =B13*B14*(B12^(B14-1)) -> 1
A19: F(V*) | B19: =IF(B3<B12,B13*(B12^B14),B10) -> 1.7
A20: V*-K | B20: =B12-B4 -> 1.7
A22: IT IS HARD TO IMAGINE THAT THERE IS ANOTHER
A23: TRADED ASSET CORRELATED WITH UMIT, THAT
A24: THE VOLATILITY OF UMIT CAN BE ESTIMATED
A25: ACCURATELY, OR THAT THIS ACQUISITION COULD
A26: BE PERPETUAL.
A28: BUT SOLVING THE PROBLEM INDICATES A THOUGHT
A29: PROCESS, WHEREBY UMAN MIGHT CONSIDER DEFERRAL
A30: UNTIL UMIT IS WORTH OVER 3 TIMES CURRENT VALUE,
A31: OR A GOVERNMENT REDUCES THE EFFECTIVE COST,
A32: UNLESS UMAN HAS OTHER OBJECTIVE FUNCTIONS.

Sheet Problem 4.4
A1: Perpetual American Option
A2: Problem 4.4
A3: V | B3: 500
A4: K | B4: 450
A5: s | B5: 0.2
A6: r | B6: 0.04
A7: d | B7: 0.04
A9: F(V) | B9: =IF(B3<B12,B13*(B3^B14),B10) -> 138.8888889 | C9: IF(B3<B12,B13*(B3^B14),B10)
A10: V-K | B10: =B3-B4 -> 50 | C10: B3-B4
A11: F'(V) | B11: =IF(B3<B12,B13*B14*(B3^(B14-1)),1) -> 0.5555555556 | C11: IF(B3<B12,B13*B14*(B3^(B14-1)),1)
A12: V* | B12: =(B14/(B14-1))*B4 -> 900 | C12: (B14/(B14-1))*B4
A13: A | B13: =(B12-B4)/(B12^B14) -> 0.0005555555556 | C13: (B12-B4)/(B12^B14)
A14: b1 | B14: =0.5-(B6-B7)/(B5^2)+SQRT(((B6-B7)/(B5^2)-0.5)^2 + 2*B6/(B5^2)) -> 2
A15: b1= | B15: 0.5-(B6-B7)/(B5^2)+SQRT(((B6-B7)/(B5^2)-0.5)^2 + 2*B6/(B5^2))
A16: ODE | B16: =0.5*(B5^2)*(B3^2)*B17+(B6-B7)*B3*B11-B6*B9 -> 0 | C16: 0.5*(B5^2)*(B3^2)*B17+(B6-B7)*B3*B11-B6*B9
A17: F''(V) | B17: =IF(B3<B12,B13*B14*(B14-1)*(B3^(B14-2)),0) -> 0.001111111111 | C17: IF(B3<B12,B13*B14*(B14-1)*(B3^(B14-2)),0)
A18: F'(V*) | B18: =B13*B14*(B12^(B14-1)) -> 1 | C18: B13*B14*(B12^(B14-1))
A19: F(V*) | B19: =IF(B3<B12,B13*(B12^B14),B10) -> 450 | C19: IF(B3<B12,B13*(B12^B14),B10)
A20: V*-K | B20: =B12-B4 -> 450 | C20: B12-B4
A22: INSERTING DELTA, GAMMA AND THE F(V) FUNCTION
A23: INTO ODE RESULTS IN THE ODE EQUAL TO ZERO.
A24: VALUE MATCHING AND SMOOTH PASTING CONDITIONS
A25: ARE MET.

Sheet Problem 4.5
B1: Hedging a Perpetual American Option
A2: Problem 4.5 | B2: PER SF | C2: TOTAL
A3: V | B3: 750 | C3: =B3*C15 -> 1500000
A4: K | B4: 850 | C4: =B4*C15 -> 1700000
A5: s | B5: 0.5 | C5: =B5 -> 0.5
A6: r | B6: 0.04 | C6: =B6 -> 0.04
A7: d | B7: 0.04 | C7: =B7 -> 0.04
A9: F(V) | B9: =IF(B3<B12,B13*(B3^B14),B10) -> 385.5514036 | C9: =B9*C15 -> 771102.8073
A10: V-K | B10: =B3-B4 -> -100 | C10: =C3-C4 -> -200000
A11: F'(V) | B11: =IF(B3<B12,B13*B14*(B3^(B14-1)),1) -> 0.6451475043 | C11: =IF(C3<C12,C13*C14*(C3^(C14-1)),1) -> 0.6451475043
A12: V* | B12: =(B14/(B14-1))*B4 -> 4183.549772 | C12: =(C14/(C14-1))*C4 -> 8367099.544
A13: A | B13: =(B12-B4)/(B12^B14) -> 0.09504472181 | C13: =(C12-C4)/(C12^C14) -> 0.01368421876
A14: b1 | B14: =0.5-(B6-B7)/(B5^2)+SQRT(((B6-B7)/(B5^2)-0.5)^2 + 2*B6/(B5^2)) -> 1.254983444 | C14: =0.5-(C6-C7)/(C5^2)+SQRT(((C6-C7)/(C5^2)-0.5)^2 + 2*C6/(C5^2)) -> 1.254983444
A15: SF | C15: 2000
A16: CITY OTHER NET ASSETS | C16: 250000
A17: COST CITY'S ROV | C17: 200000
A19: CITY LTD VALUE | C19: =C9+C16-C17 -> 821102.8073
A20: CITY LTD ISSSED FOR | C20: 900000
A21: DELTA HEDGE POSITION: V | C21: =C11*C3 -> 967721.2564 | D21: C11*C3
A24: INITIAL PROFITS | C24: =C20-C19 -> 78897.19272 | D24: C20-C19
A25: EVENTUAL PROFITS DEPEND ON HEDGING INACCURACY & TRANSACTION COSTS.
B27: ROV NUMERICAL DELTA | E27: 10% DECREASE | F27: 10% INCREASE
A28: =A3 -> V | B28: 675 | C28: =B3 -> 750 | D28: 825 | E28: =-1+B28/C28 -> -0.1 | F28: =D28/C28-1 -> 0.1
A29: =A4 -> K | B29: 850 | C29: =B4 -> 850 | D29: 850
A30: s | B30: 0.5 | C30: =B5 -> 0.5 | D30: 0.5
A31: r | B31: 0.04 | C31: =B6 -> 0.04 | D31: 0.04
A32: d | B32: 0.04 | C32: =B7 -> 0.04 | D32: 0.04
E33: AS % V
A34: =A9 -> F(V) | B34: =IF(B28<B37,B38*(B28^B39),B35) -> 337.7982501 | C34: =B9 -> 385.5514036 | D34: =IF(D28<D37,D38*(D28^D39),D35) -> 434.5396629 | E34: =(B34-C34)/(B28-C28) -> 0.6367087136 | F34: =(D34-C34)/(D28-C28) -> 0.6531767901
A35: =A10 -> V-K | B35: =B28-B29 -> -175 | C35: -100 | D35: =D28-D29 -> -25
A36: =A11 -> F'(V) | B36: =IF(B28<B37,B38*B39*(B28^(B39-1)),1) -> 0.6280462388 | C36: 0.6451475043 | D36: =IF(D28<D37,D38*D39*(D28^(D39-1)),1) -> 0.6610182818
A37: =A12 -> V* | B37: =(B39/(B39-1))*B29 -> 4183.549772 | C37: 4183.549772 | D37: =(D39/(D39-1))*D29 -> 4183.549772
A38: =A13 -> A | B38: =(B37-B29)/(B37^B39) -> 0.09504472181 | C38: 0.09504472181 | D38: =(D37-D29)/(D37^D39) -> 0.09504472181
A39: b1 | B39: =0.5-(B31-B32)/(B30^2)+SQRT(((B31-B32)/(B30^2)-0.5)^2 + 2*B31/(B30^2)) -> 1.254983444 | C39: 1.254983444 | D39: =0.5-(D31-D32)/(D30^2)+SQRT(((D31-D32)/(D30^2)-0.5)^2 + 2*D31/(D30^2)) -> 1.254983444
A41: Hedging a Perpetual American WRITTEN CALL Option (per SF)
A42: MONTH | B42: 0 | C42: =B42+1 -> 1 | D42: =C42+1 -> 2 | E42: =D42+1 -> 3 | F42: =E42+1 -> 4
A43: V | B43: 750 | C43: 800 | D43: 750 | E43: 700 | F43: 750
A44: K | B44: 850 | C44: =B44 -> 850 | D44: 850 | E44: 850 | F44: 850
A45: s | B45: 0.5 | C45: 0.5 | D45: 0.5 | E45: 0.5 | F45: 0.5
A46: r | B46: 0.04 | C46: 0.04 | D46: 0.04 | E46: 0.04 | F46: 0.04
A47: d | B47: 0.04 | C47: 0.04 | D47: 0.04 | E47: 0.04 | F47: 0.04
A48: OUTPUT
A49: WRITE ROV CALL | B49: =IF(B43<B57,-B58*(B43^B59),-B61) -> -385.5514036 | C49: =IF(C43<C57,-C58*(C43^C59),-C61) -> -418.078537 | D49: =IF(D43<D57,-D58*(D43^D59),-D61) -> -385.5514036 | E49: =IF(E43<E57,-E58*(E43^E59),-E61) -> -353.5728745 | F49: =IF(F43<F57,-F58*(F43^F59),-F61) -> -385.5514036
A50: HEDGE LONG VD | B50: =B56*B43 -> 483.8606282 | C50: =B50+C51 -> 492.4242668 | D50: =C50+D51 -> 484.3958556 | E50: =D50+E51 -> 476.5207062 | F50: =E50+F51 -> 484.9583663
A51: ALTER HEDGE | C51: =(C56-B56)*C43 -> 8.563638593 | D51: =(D56-C56)*D43 -> -8.028411181 | E51: =(E56-D56)*E43 -> -7.875149398 | F51: =(F56-E56)*F43 -> 8.437660069
A52: GAIN ROV | C52: =-B49+C49 -> -32.52713334 | D52: =-C49+D49 -> 32.52713334 | E52: =-D49+E49 -> 31.97852913 | F52: =-E49+F49 -> -31.97852913
A53: GAIN V | C53: =(B50/B43)*(C43-B43) -> 32.25737521 | D53: =(C50/C43)*(D43-C43) -> -30.77651667 | E53: =(D50/D43)*(E43-D43) -> -32.29305704 | F53: =(E50/E43)*(F43-E43) -> 34.0371933
A54: NET GAIN | C54: =C52+C53 -> -0.2697581264 | D54: =D52+D53 -> 1.750616665 | E54: =E52+E53 -> -0.314527907 | F54: =F52+F53 -> 2.058664167
A55: CUM GAIN | C55: =SUM($C$54:C54) -> -0.2697581264 | D55: =SUM($C$54:D54) -> 1.480858539 | E55: =SUM($C$54:E54) -> 1.166330632 | F55: =SUM($C$54:F54) -> 3.224994799
A56: F'(V) | B56: =IF(B43<B57,B58*B59*(B43^(B59-1)),1) -> 0.6451475043 | C56: =IF(C43<C57,C58*C59*(C43^(C59-1)),1) -> 0.6558520525 | D56: =IF(D43<D57,D58*D59*(D43^(D59-1)),1) -> 0.6451475043 | E56: =IF(E43<E57,E58*E59*(E43^(E59-1)),1) -> 0.6338972908 | F56: =IF(F43<F57,F58*F59*(F43^(F59-1)),1) -> 0.6451475043
A57: V* | B57: =(B59/(B59-1))*B44 -> 4183.549772 | C57: =(C59/(C59-1))*C44 -> 4183.549772 | D57: =(D59/(D59-1))*D44 -> 4183.549772 | E57: =(E59/(E59-1))*E44 -> 4183.549772 | F57: =(F59/(F59-1))*F44 -> 4183.549772
A58: A | B58: =(B57-B44)/(B57^B59) -> 0.09504472181 | C58: =(C57-C44)/(C57^C59) -> 0.09504472181 | D58: =(D57-D44)/(D57^D59) -> 0.09504472181 | E58: =(E57-E44)/(E57^E59) -> 0.09504472181 | F58: =(F57-F44)/(F57^F59) -> 0.09504472181
A59: b1 | B59: =0.5-(B46-B47)/(B45^2)+SQRT(((B46-B47)/(B45^2)-0.5)^2 + 2*B46/(B45^2)) -> 1.254983444 | C59: =0.5-(C46-C47)/(C45^2)+SQRT(((C46-C47)/(C45^2)-0.5)^2 + 2*C46/(C45^2)) -> 1.254983444 | D59: =0.5-(D46-D47)/(D45^2)+SQRT(((D46-D47)/(D45^2)-0.5)^2 + 2*D46/(D45^2)) -> 1.254983444 | E59: =0.5-(E46-E47)/(E45^2)+SQRT(((E46-E47)/(E45^2)-0.5)^2 + 2*E46/(E45^2)) -> 1.254983444 | F59: =0.5-(F46-F47)/(F45^2)+SQRT(((F46-F47)/(F45^2)-0.5)^2 + 2*F46/(F45^2)) -> 1.254983444
A60: F''(V) | B60: =IF(B43<B57,B58*B59*(B59-1)*(B43^(B59-2)),0) -> 0.0002193359096 | C60: =IF(C43<C57,C58*C59*(C59-1)*(C43^(C59-2)),0) -> 0.0002090392685 | D60: =IF(D43<D57,D58*D59*(D59-1)*(D43^(D59-2)),0) -> 0.0002193359096 | E60: =IF(E43<E57,E58*E59*(E59-1)*(E43^(E59-2)),0) -> 0.0002309047344 | F60: =IF(F43<F57,F58*F59*(F59-1)*(F43^(F59-2)),0) -> 0.0002193359096
A61: V-K | B61: =B43-B44 -> -100 | C61: =C43-C44 -> -50 | D61: =D43-D44 -> -100 | E61: =E43-E44 -> -150 | F61: =F43-F44 -> -100
A63: =A50 -> HEDGE LONG VD | B63: B56*B43 | C63: B50+C51
A64: ALTER HEDGE | C64: (C56-B56)*C43
A65: GAIN ROV | C65: -B49+C49
A66: GAIN V | C66: (B50/B43)*(C43-B43)
A67: NET GAIN | C67: C52+C53
A68: CUM GAIN | C68: SUM($C$54:C54)
A70: ISSUE A PERPETUAL AMERICAN REAL CALL OPTION
A71: HEDGE BY BUYING DELTA OF V BEGINNING OF EACH MONTH.

Sheet Problem 4.6
A1: Perpetual American Option
A2: Problem 4.6 | B2: MONTH | C2: 1 | D2: 2 | E2: 3 | F2: 4
A3: V | B3: 750 | C3: 800 | D3: 750 | E3: 700 | F3: 750
A4: K | B4: 850 | C4: 850 | D4: 850 | E4: 850 | F4: 850
A5: s | B5: 0.5 | C5: 0.5 | D5: 0.5 | E5: 0.5 | F5: 0.5
A6: r | B6: 0.04 | C6: 0.04 | D6: 0.02 | E6: 0.05 | F6: 0.04
A7: d | B7: 0.04 | C7: 0.04 | D7: 0.04 | E7: 0.04 | F7: 0.04
A9: F(V) | B9: =IF(B3<B12,B13*(B3^B14),B10) -> 385.5514036 | C9: =IF(C3<C12,C13*(C3^C14),C10) -> 418.078537 | D9: =IF(D3<D12,D13*(D3^D14),D10) -> 366.9220618 | E9: =IF(E3<E12,E13*(E3^E14),E10) -> 361.9412413 | F9: =IF(F3<F12,F13*(F3^F14),F10) -> 385.5514036
A10: V-K | B10: =B3-B4 -> -100 | C10: =C3-C4 -> -50 | D10: =D3-D4 -> -100 | E10: =E3-E4 -> -150 | F10: =F3-F4 -> -100
A11: F'(V) | B11: =IF(B3<B12,B13*B14*(B3^(B14-1)),1) -> 0.6451475043 | C11: =IF(C3<C12,C13*C14*(C3^(C14-1)),1) -> 0.6558520525 | D11: =IF(D3<D12,D13*D14*(D3^(D14-1)),1) -> 0.628442874 | E11: =IF(E3<E12,E13*E14*(E3^(E14-1)),1) -> 0.6422122987 | F11: =IF(F3<F12,F13*F14*(F3^(F14-1)),1) -> 0.6451475043
A12: V* | B12: =(B14/(B14-1))*B4 -> 4183.549772 | C12: =(C14/(C14-1))*C4 -> 4183.549772 | D12: =(D14/(D14-1))*D4 -> 3837.103464 | E12: =(E14/(E14-1))*E4 -> 4361.691572 | F12: =(F14/(F14-1))*F4 -> 4183.549772
A13: A | B13: =(B12-B4)/(B12^B14) -> 0.09504472181 | C13: =(C12-C4)/(C12^C14) -> 0.09504472181 | D13: =(D12-D4)/(D12^D14) -> 0.07436950816 | E13: =(E12-E4)/(E12^E14) -> 0.105898073 | F13: =(F12-F4)/(F12^F14) -> 0.09504472181
A14: b1 | B14: =0.5-(B6-B7)/(B5^2)+SQRT(((B6-B7)/(B5^2)-0.5)^2 + 2*B6/(B5^2)) -> 1.254983444 | C14: =0.5-(C6-C7)/(C5^2)+SQRT(((C6-C7)/(C5^2)-0.5)^2 + 2*C6/(C5^2)) -> 1.254983444 | D14: =0.5-(D6-D7)/(D5^2)+SQRT(((D6-D7)/(D5^2)-0.5)^2 + 2*D6/(D5^2)) -> 1.284556598 | E14: =0.5-(E6-E7)/(E5^2)+SQRT(((E6-E7)/(E5^2)-0.5)^2 + 2*E6/(E5^2)) -> 1.242048592 | F14: =0.5-(F6-F7)/(F5^2)+SQRT(((F6-F7)/(F5^2)-0.5)^2 + 2*F6/(F5^2)) -> 1.254983444
A16: SF | B16: 2000 | C16: 2000 | D16: 2000 | E16: 2000 | F16: 2000
A17: TOTAL ROV | B17: =B9*B16 -> 771102.8073 | C17: =C9*C16 -> 836157.074 | D17: =D9*D16 -> 733844.1237 | E17: =E9*E16 -> 723882.4826 | F17: =F9*F16 -> 771102.8073
A18: COST | B18: 200000 | C18: 200000 | D18: 200000 | E18: 200000 | F18: 200000
A19: RO WORTH | B19: =B17-B18 -> 571102.8073 | C19: =C17-C18 -> 636157.074 | D19: =D17-D18 -> 533844.1237 | E19: =E17-E18 -> 523882.4826 | F19: =F17-F18 -> 571102.8073
A20: SECURITY ANALYSIS OF CITY LTD.
A21: FUNDAMENTALS
A22: OTHER NET ASSETS | B22: 250000 | C22: =B22 -> 250000 | D22: =C22 -> 250000 | E22: =D22 -> 250000 | F22: =E22 -> 250000
A23: ROV | B23: =B19 -> 571102.8073 | C23: =C19 -> 636157.074 | D23: =D19 -> 533844.1237 | E23: =E19 -> 523882.4826 | F23: =F19 -> 571102.8073
A24: TOTAL EQUITY VALUE | B24: =B22+B23 -> 821102.8073 | C24: =C22+C23 -> 886157.074 | D24: =D22+D23 -> 783844.1237 | E24: =E22+E23 -> 773882.4826 | F24: =F22+F23 -> 821102.8073
A25: SHARES | B25: 1000000 | C25: 1000000 | D25: 1000000 | E25: 1000000 | F25: 1000000
A26: NET REAL OPTION VALUE/SHARE | B26: =B24/B25 -> 0.8211028073 | C26: =C24/C25 -> 0.886157074 | D26: =D24/D25 -> 0.7838441237 | E26: =E24/E25 -> 0.7738824826 | F26: =F24/F25 -> 0.8211028073
A27: MP/SHARE | B27: =B26 -> 0.8211028073 | C27: 1 | D27: 0.82 | E27: 0.8 | F27: 0.8
A28: PHF SHARES | B28: =0.1*B25 -> 100000
A29: PHF MARKET POSITION | B29: $B$28*B27
A30: PHF MARKET POSITION | B30: =$B$28*B27 -> 82110.28073 | C30: =$B$28*C27 -> 100000 | D30: =$B$28*D27 -> 82000 | E30: =$B$28*E27 -> 80000 | F30: =$B$28*F27 -> 80000
A31: PHF HEDGE: SHORT VD | B31: =B16*B51*0.1 -> -96772.12564 | C31: =C16*C51*0.1 -> -95059.39792 | D31: =D16*D51*0.1 -> -99170.77469 | E31: =E16*E51*0.1 -> -97243.05524 | F31: =F16*F51*0.1 -> -96802.7744
A32: PHF HEDGE | B32: B16*B51*0.1
A33: GAINS/LOSSES
A34: PHF POSITION | C34: =C30-B30 -> 17889.71927 | D34: =D30-C30 -> -18000 | E34: =E30-D30 -> -2000 | F34: =F30-E30 -> 0
A35: PHF HEDGE | C35: =2000*0.1*C54 -> -6451.475043 | D35: =2000*0.1*D54 -> 5941.21237 | E35: =2000*0.1*E54 -> 6611.384979 | F35: =2000*0.1*F54 -> -6945.932517
A37: CUM £ GAIN/LOSS
A38: =A34 -> PHF POSITION | C38: =SUM($C$34:C34) -> 17889.71927 | D38: =SUM($C$34:D34) -> -110.2807284 | E38: =SUM($C$34:E34) -> -2110.280728 | F38: =SUM($C$34:F34) -> -2110.280728
A39: =A35 -> PHF HEDGE | C39: =SUM($C$35:C35) -> -6451.475043 | D39: =SUM($C$35:D35) -> -510.2626726 | E39: =SUM($C$35:E35) -> 6101.122307 | F39: =SUM($C$35:F35) -> -844.8102101
A40: NET CUM GAIN | C40: =C38+C39 -> 11438.24423 | D40: =D38+D39 -> -620.543401 | E40: =E38+E39 -> 3990.841578 | F40: =F38+F39 -> -2955.090938
B42: Hedging a Perpetual American Option
A43: MONTH | B43: 0 | C43: =B43+1 -> 1 | D43: =C43+1 -> 2 | E43: =D43+1 -> 3 | F43: =E43+1 -> 4
A44: V | B44: =B3 -> 750 | C44: =C3 -> 800 | D44: =D3 -> 750 | E44: =E3 -> 700 | F44: =F3 -> 750
A45: K | B45: =B4 -> 850 | C45: =B45 -> 850 | D45: 850 | E45: 850 | F45: 850
A46: s | B46: =B5 -> 0.5 | C46: 0.5 | D46: 0.5 | E46: 0.5 | F46: 0.5
A47: r | B47: =B6 -> 0.04 | C47: =C6 -> 0.04 | D47: =D6 -> 0.02 | E47: =E6 -> 0.05 | F47: =F6 -> 0.04
A48: d | B48: =B7 -> 0.04 | C48: =B48 -> 0.04 | D48: =C48 -> 0.04 | E48: =D48 -> 0.04 | F48: =E48 -> 0.04
A49: OUTPUT
A50: ROV | B50: =IF(B44<B58,B59*(B44^B60),B62) -> 385.5514036 | C50: =IF(C44<C58,C59*(C44^C60),C62) -> 418.078537 | D50: =IF(D44<D58,D59*(D44^D60),D62) -> 366.9220618 | E50: =IF(E44<E58,E59*(E44^E60),E62) -> 361.9412413 | F50: =IF(F44<F58,F59*(F44^F60),F62) -> 385.5514036
A51: HEDGE | B51: =-B57*B44 -> -483.8606282 | C51: =B51+C52 -> -475.2969896 | D51: =C51+D52 -> -495.8538735 | E51: =D51+E52 -> -486.2152762 | F51: =E51+F52 -> -484.013872
A52: ALTER HEDGE | C52: =(C57-B57)*C44 -> 8.563638593 | D52: =(D57-C57)*D44 -> -20.55688384 | E52: =(E57-D57)*E44 -> 9.638597274 | F52: =(F57-E57)*F44 -> 2.201404156
A53: GAIN ROV | C53: =-B50+C50 -> 32.52713334 | D53: =-C50+D50 -> -51.15647515 | E53: =-D50+E50 -> -4.980820516 | F53: =-E50+F50 -> 23.61016232
A54: GAIN V | C54: =-(B51/B44)*(-C44+B44) -> -32.25737521 | D54: =-(C51/C44)*(-D44+C44) -> 29.70606185 | E54: =-(D51/D44)*(-E44+D44) -> 33.0569249 | F54: =-(E51/E44)*(-F44+E44) -> -34.72966258
A55: NET GAIN | C55: =C53+C54 -> 0.2697581264 | D55: =D53+D54 -> -21.4504133 | E55: =E53+E54 -> 28.07610438 | F55: =F53+F54 -> -11.11950026
A56: CUM GAIN | C56: =SUM($C$55:C55) -> 0.2697581264 | D56: =SUM($C$55:D55) -> -21.18065517 | E56: =SUM($C$55:E55) -> 6.895449209 | F56: =SUM($C$55:F55) -> -4.22405105
A57: F'(V) | B57: =IF(B44<B58,B59*B60*(B44^(B60-1)),1) -> 0.6451475043 | C57: =IF(C44<C58,C59*C60*(C44^(C60-1)),1) -> 0.6558520525 | D57: =IF(D44<D58,D59*D60*(D44^(D60-1)),1) -> 0.628442874 | E57: =IF(E44<E58,E59*E60*(E44^(E60-1)),1) -> 0.6422122987 | F57: =IF(F44<F58,F59*F60*(F44^(F60-1)),1) -> 0.6451475043
A58: V* | B58: =(B60/(B60-1))*B45 -> 4183.549772 | C58: =(C60/(C60-1))*C45 -> 4183.549772 | D58: =(D60/(D60-1))*D45 -> 3837.103464 | E58: =(E60/(E60-1))*E45 -> 4361.691572 | F58: =(F60/(F60-1))*F45 -> 4183.549772
A59: A | B59: =(B58-B45)/(B58^B60) -> 0.09504472181 | C59: =(C58-C45)/(C58^C60) -> 0.09504472181 | D59: =(D58-D45)/(D58^D60) -> 0.07436950816 | E59: =(E58-E45)/(E58^E60) -> 0.105898073 | F59: =(F58-F45)/(F58^F60) -> 0.09504472181
A60: b1 | B60: =0.5-(B47-B48)/(B46^2)+SQRT(((B47-B48)/(B46^2)-0.5)^2 + 2*B47/(B46^2)) -> 1.254983444 | C60: =0.5-(C47-C48)/(C46^2)+SQRT(((C47-C48)/(C46^2)-0.5)^2 + 2*C47/(C46^2)) -> 1.254983444 | D60: =0.5-(D47-D48)/(D46^2)+SQRT(((D47-D48)/(D46^2)-0.5)^2 + 2*D47/(D46^2)) -> 1.284556598 | E60: =0.5-(E47-E48)/(E46^2)+SQRT(((E47-E48)/(E46^2)-0.5)^2 + 2*E47/(E46^2)) -> 1.242048592 | F60: =0.5-(F47-F48)/(F46^2)+SQRT(((F47-F48)/(F46^2)-0.5)^2 + 2*F47/(F46^2)) -> 1.254983444
A61: F''(V) | B61: =IF(B44<B58,B59*B60*(B60-1)*(B44^(B60-2)),0) -> 0.0002193359096 | C61: =IF(C44<C58,C59*C60*(C60-1)*(C44^(C60-2)),0) -> 0.0002090392685 | D61: =IF(D44<D58,D59*D60*(D60-1)*(D44^(D60-2)),0) -> 0.0002384367552 | E61: =IF(E44<E58,E59*E60*(E60-1)*(E44^(E60-2)),0) -> 0.0002220665465 | F61: =IF(F44<F58,F59*F60*(F60-1)*(F44^(F60-2)),0) -> 0.0002193359096
A62: V-K | B62: =B44-B45 -> -100 | C62: =C44-C45 -> -50 | D62: =D44-D45 -> -100 | E62: =E44-E45 -> -150 | F62: =F44-F45 -> -100
A64: =A51 -> HEDGE | B64: -B57*B44 | C64: B51+C52
A65: ALTER HEDGE | C65: (C57-B57)*C44
A66: GAIN ROV | C66: -B50+C50
A67: GAIN V | C67: -(B51/B44)*(-C44+B44)
A68: NET GAIN | C68: C53+C54
A69: CUM GAIN | C69: SUM($C$55:C55)
A71: BUY A FIRM OWNING A PERPETUAL AMERICAN REAL CALL OPTION
A72: HEDGE BY SHORTING DELTA OF V BEGINNING OF EACH MONTH. | G72: RISK
A73: RISK BUYING CITY SHS | C73: =C34/$B$30 -> 0.2178742919 | D73: -0.2192173725 | E73: -0.02435748584 | F73: 0 | G73: =STDEV(C73:F73) -> 0.1788422217
A74: RISK CITY SHS HEDGED | C74: -0.07857085599 | D74: 0.07235649808 | E74: 0.080518358 | F74: -0.08459272646 | G74: =STDEV(C74:F74) -> 0.09132636184

Sheet Exercise 14.1
A1: EXERCISE 14.1 ACTIVE FLOOR ONLY
A2: INPUT | D2: EQ
A3: R | B3: 2
A5: s | B5: 0.2
A6: r | B6: 0.04
A7: d | B7: 0.04
A8: RL | B8: 4
A10: OUTPUT
A11: VCf | B11: =IF(B3<B8,B8/B6+B16,B3/B7+B18) -> 108.3333333 | C11: IF(B3<B8,B8/B6+B16,B3/B7+B18) | D11: 11
A12: VCf PV | B12: =IF(B3<B8,B8/B6,B3/B7) -> 100 | C12: IF(B3<B8,B8/B6,B3/B7) | D12: 11
A13: R/d | B13: =B3/B7 -> 50 | C13: B3/B7
A14: b1 | B14: =0.5-(B6-B7)/(B5^2)+SQRT(((B6-B7)/(B5^2)-0.5)^2 + 2*B6/(B5^2)) -> 2 | C14: 0.5-(B6-B7)/(B5^2)+SQRT(((B6-B7)/(B5^2)-0.5)^2 + 2*B6/(B5^2)) | D14: 4
A15: b2 | B15: =0.5-(B6-B7)/(B5^2)-SQRT(((B6-B7)/(B5^2)-0.5)^2 + 2*B6/(B5^2)) -> -1 | C15: 0.5-(B6-B7)/(B5^2)-SQRT(((B6-B7)/(B5^2)-0.5)^2 + 2*B6/(B5^2)) | D15: 4
A16: ACf11*R^b1 | B16: =B21*(B3^B14) -> 8.333333333 | C16: B21*(B3^B14)
A18: ACf22*R^b2 | B18: =B23*(B3^B15) -> 66.66666667 | C18: B23*(B3^B15)
A21: ACf11 | B21: =(-B8/(B8^B14))*(B25/B27) -> 2.083333333 | C21: (-B8/(B8^B14))*(B25/B27) | D21: 12
A23: ACf22 | B23: =(-B8/(B8^B15))*(B26/B27) -> 133.3333333 | C23: (-B8/(B8^B15))*(B26/B27) | D23: 12
A25: [ ] | B25: =(B6*B15-B6-B7*B15) -> -0.04 | C25: (B6*B15-B6-B7*B15)
A26: ( ) | B26: =(B6*B14-B6-B7*B14) -> -0.04 | C26: (B6*B14-B6-B7*B14)
A27: { } | B27: =(B14-B15)*B6*B7 -> 0.0048 | C27: (B14-B15)*B6*B7
A29: ODE | B29: =0.5*(B5^2)*(B3^2)*B31+(B6-B7)*B3*B30-B6*B11+MIN(MAX(B8,B3)) -> 0 | C29: 0.5*(B5^2)*(B3^2)*B31+(B6-B7)*B3*B30-B6*B11+MIN(MAX(B8,B3))
A30: VC D | B30: =IF(B3<B8,1/B6+B14*B21*(B3^(B14-1)),1/B7+B15*B23*(B3^(B15-1))) -> 33.33333333 | C30: IF(B3<B8,1/B6+B14*B21*(B3^(B14-1)),1/B7+B15*B23*(B3^(B15-1)))
A31: VC G | B31: =IF(B3<B8,(B14-1)*B14*B21*(B3^(B14-2)),(B15-1)*B15*B23*(B3^(B15-2))) -> 4.166666667 | C31: IF(B3<B8,(B14-1)*B14*B21*(B3^(B14-2)),(B15-1)*B15*B23*(B3^(B15-2)))
A32: VC D | C32: Decomposition
A33: IF(B3<B8) | B33: =B14*B21*(B3^(B14-1)) -> 8.333333333 | C33: B14*B21*(B3^(B14-1))
A34: IF(B8<B3 | B34: =1/B7+B15*B23*(B3^(B15-1)) -> -8.333333333 | C34: 1/B7+B15*B23*(B3^(B15-1))
A35: IF(B3<B8 | B35: =1/B7 -> 25 | C35: 1/B7
A36: IF(B8<B3 | B36: =B15*B23*(B3^(B15-1)) -> -33.33333333 | C36: B15*B23*(B3^(B15-1))

Sheet Exercise 14.2
A1: ACTIVE PPP WITH CEILING ONLY EXERCISE 14.2
A2: INPUT | D2: EQ
A3: R | B3: 4
A5: s | B5: 0.2
A6: r | B6: 0.04
A7: d | B7: 0.04
A9: RH | B9: 15
A10: OUTPUT
A11: VCc | B11: =IF(B3<B9,B3/B7+B17,B9/B6+B19) -> 91.11111111 | C11: IF(B3<B9,B3/B7+B17,B9/B6+B19) | D11: 13
A13: R/d | B13: =B3/B7 -> 100 | C13: B3/B7
A14: b1 | B14: =0.5-(B6-B7)/(B5^2)+SQRT(((B6-B7)/(B5^2)-0.5)^2 + 2*B6/(B5^2)) -> 2 | C14: 0.5-(B6-B7)/(B5^2)+SQRT(((B6-B7)/(B5^2)-0.5)^2 + 2*B6/(B5^2)) | D14: 4
A15: b2 | B15: =0.5-(B6-B7)/(B5^2)-SQRT(((B6-B7)/(B5^2)-0.5)^2 + 2*B6/(B5^2)) -> -1 | C15: 0.5-(B6-B7)/(B5^2)-SQRT(((B6-B7)/(B5^2)-0.5)^2 + 2*B6/(B5^2)) | D15: 4
A17: ACc21*R^b1 | B17: =B22*(B3^B14) -> -8.888888889 | C17: B22*(B3^B14)
A19: ACc32*R^b2 | B19: =B24*(B3^B15) -> -468.75 | C19: B24*(B3^B15)
A22: ACc21 | B22: =(B9/(B9^B14))*(B25/B27) -> -0.5555555556 | C22: (B9/(B9^B14))*(B25/B27) | D22: 14
A24: ACc32 | B24: =(B9/(B9^B15))*(B26/B27) -> -1875 | C24: (B9/(B9^B15))*(B26/B27) | D24: 14
A25: [ ] | B25: =(B6*B15-B6-B7*B15) -> -0.04 | C25: (B6*B15-B6-B7*B15)
A26: ( ) | B26: =(B6*B14-B6-B7*B14) -> -0.04 | C26: (B6*B14-B6-B7*B14)
A27: { } | B27: =(B14-B15)*B6*B7 -> 0.0048 | C27: (B14-B15)*B6*B7
A29: ODE | B29: =0.5*(B5^2)*(B3^2)*B31+(B6-B7)*B3*B30-B6*B11+MAX(MIN(B3,B9)) -> 0 | C29: 0.5*(B5^2)*(B3^2)*B31+(B6-B7)*B3*B30-B6*B11+MAX(MIN(B3,B9))
A30: VC D | B30: =IF(B3<B9,1/B7+B14*B22*(B3^(B14-1)),1/B6+B15*B24*(B3^(B15-1))) -> 20.55555556 | C30: IF(B3<B9,1/B7+B14*B22*(B3^(B14-1)),1/B6+B15*B24*(B3^(B15-1)))
A31: VC G | B31: =IF(B3<B9,(B14-1)*B14*B22*(B3^(B14-2)),(B15-1)*B15*B24*(B3^(B15-2))) -> -1.111111111 | C31: IF(B3<B9,(B14-1)*B14*B22*(B3^(B14-2)),(B15-1)*B15*B24*(B3^(B15-2)))
A32: VC D
A33: IF(B3<B9) | B33: =1/B7+B14*B22*(B3^(B14-1)) -> 20.55555556 | C33: 1/B7+B14*B22*(B3^(B14-1))
C34: Decomposition
A35: IF(B3<B9) | B35: =1/B7 -> 25 | C35: 1/B7
A36: IF(B3<B9) | B36: =B14*B22*(B3^(B14-1)) -> -4.444444444 | C36: B14*B22*(B3^(B14-1))
A37: IF(B9<B3 | B37: =B15*B24*(B3^(B15-1)) -> 117.1875 | C37: B15*B24*(B3^(B15-1))

Sheet Exercise 14.3
A1: ACTIVE PPP WITH COLLAR EXERCISE 14.3
A2: INPUT | D2: EQ
A3: R | B3: 4
A4: K | B4: 100
A5: s | B5: 0.2
A6: r | B6: 0.04
A7: d | B7: 0.04
A8: RL | B8: 4
A9: RH | B9: 1000
A10: OUTPUT
A14: b1 | B14: =0.5-(B6-B7)/(B5^2)+SQRT(((B6-B7)/(B5^2)-0.5)^2 + 2*B6/(B5^2)) -> 2 | C14: 0.5-(B6-B7)/(B5^2)+SQRT(((B6-B7)/(B5^2)-0.5)^2 + 2*B6/(B5^2)) | D14: 4
A16: VC | B16: =IF(B3<B8,B8/B6+B22*(B3^B14),IF(B3>B9,B9/B6+B25*(B3^B18),B3/B7+B23*(B3^B14)+B24*(B3^B18))) -> 133.2 | D16: 5
A17: VC PV | B17: =IF(B3<B8,B8/B6,IF(B3>B9,B9/B6,B3/B7)) -> 100 | C17: IF(B3<$B$8,$B$8/B6,IF(B3>$B$9,$B$9/B6,B3/B7))
A18: b2 | B18: =0.5-(B6-B7)/(B5^2)-SQRT(((B6-B7)/(B5^2)-0.5)^2 + 2*B6/(B5^2)) -> -1 | C18: 0.5-(B6-B7)/(B5^2)-SQRT(((B6-B7)/(B5^2)-0.5)^2 + 2*B6/(B5^2)) | D18: 4
A19: AC21*R^b1 | B19: =B23*(B3^B14) -> -0.1333333333 | C19: B23*(B3^B14)
A20: AC22*R^b2 | B20: =B24*(B3^B18) -> 33.33333333 | C20: B24*(B3^B18)
A21: VC | B21: =B17+B19+B20 -> 133.2 | C21: B17+B19+B20
A22: AC11 | B22: =(B9/(B9^B14)-B8/(B8^B14))*(B26/B28) -> 2.075 | C22: ($B$9/($B$9^B14)-$B$8/($B$8^B14))*(B26/B28) | D22: 10
A23: AC21 | B23: =(B9/(B9^B14))*(B26/B28) -> -0.008333333333 | C23: ($B$9/($B$9^B14))*(B26/B28) | D23: 10
A24: AC22 | B24: =(-B8/(B8^B18))*(B27/B28) -> 133.3333333 | C24: (-$B$8/($B$8^B18))*(B27/B28) | D24: 10
A25: AC32 | B25: =(B9/(B9^B18)-B8/(B8^B18))*(B27/B28) -> -8333200 | C25: ($B$9/($B$9^B18)-$B$8/($B$8^B18))*(B27/B28) | D25: 10
A26: [ ] | B26: =(B6*B18-B6-B7*B18) -> -0.04 | C26: (B6*B18-B6-B7*B18) | D26: 10
A27: ( ) | B27: =(B6*B14-B6-B7*B14) -> -0.04 | C27: (B6*B14-B6-B7*B14) | D27: 10
A28: { } | B28: =(B14-B18)*B6*B7 -> 0.0048 | C28: (B14-B18)*B6*B7 | D28: 10
A30: ODE | B30: =0.5*(B5^2)*(B3^2)*B32+(B6-B7)*B3*B31-B6*B16+B3 -> 0 | C30: 0.5*(B5^2)*(B3^2)*B32+(B6-B7)*B3*B31-B6*B16+B3 | D30: 2
A31: VC D | B31: =1/B7+B14*B23*(B3^(B14-1))+B18*B24*(B3^(B18-1)) -> 16.6 | C31: 1/B7+B14*B23*(B3^(B14-1))+B18*B24*(B3^(B18-1))
A32: VC G | B32: =B14*(B14-1)*B23*(B3^(B14-2))+B18*(B18-1)*B24*(B3^(B18-2)) -> 4.15 | C32: B14*(B14-1)*B23*(B3^(B14-2))+B18*(B18-1)*B24*(B3^(B18-2))
A33: VC | B33: IF(B3<$B$8,$B$8/B6+B22*(B3^B14),IF(B3>$B$9,$B$9/B6+B25*(B3^B18),B3/B7+B23*(B3^B14)+B24*(B3^B18)))

Sheet Problem 14.4
A1: ACTIVE PPP WITH FLOOR ONLY PROBLEM 14.4
A2: INPUT | D2: EQ
A3: R | B3: 10
A5: s | B5: 0.25
A6: r | B6: 0.04
A7: d | B7: 0.04
A8: RL | B8: 6
A10: OUTPUT
A11: VCf | B11: =IF(B3<B8,B8/B6+B16,B3/B7+B18) -> 291.6129184 | C11: IF(B3<B8,B8/B6+B16,B3/B7+B18) | D11: 11
A12: VCf PV | B12: =IF(B3<B8,B8/B6,B3/B7) -> 250 | C12: IF(B3<B8,B8/B6,B3/B7) | D12: 11
A13: R/d | B13: =B3/B7 -> 250 | C13: B3/B7
A14: b1 | B14: =0.5-(B6-B7)/(B5^2)+SQRT(((B6-B7)/(B5^2)-0.5)^2 + 2*B6/(B5^2)) -> 1.736931688 | C14: 0.5-(B6-B7)/(B5^2)+SQRT(((B6-B7)/(B5^2)-0.5)^2 + 2*B6/(B5^2)) | D14: 4
A15: b2 | B15: =0.5-(B6-B7)/(B5^2)-SQRT(((B6-B7)/(B5^2)-0.5)^2 + 2*B6/(B5^2)) -> -0.7369316877 | C15: 0.5-(B6-B7)/(B5^2)-SQRT(((B6-B7)/(B5^2)-0.5)^2 + 2*B6/(B5^2)) | D15: 4
A16: ACf11*R^b1 | B16: =B21*(B3^B14) -> 147.2487684 | C16: B21*(B3^B14)
A18: ACf22*R^b2 | B18: =B23*(B3^B15) -> 41.61291837 | C18: B23*(B3^B15)
A21: ACf11 | B21: =(-B8/(B8^B14))*(B25/B27) -> 2.698484845 | C21: (-B8/(B8^B14))*(B25/B27) | D21: 12
A23: ACf22 | B23: =(-B8/(B8^B15))*(B26/B27) -> 227.0700535 | C23: (-B8/(B8^B15))*(B26/B27) | D23: 12
A25: [ ] | B25: =(B6*B15-B6-B7*B15) -> -0.04 | C25: (B6*B15-B6-B7*B15)
A26: ( ) | B26: =(B6*B14-B6-B7*B14) -> -0.04 | C26: (B6*B14-B6-B7*B14)
A27: { } | B27: =(B14-B15)*B6*B7 -> 0.003958181401 | C27: (B14-B15)*B6*B7
A29: ODE | B29: =0.5*(B5^2)*(B3^2)*B31+(B6-B7)*B3*B30-B6*B11+MIN(MAX(B8,B3)) -> 0 | C29: 0.5*(B5^2)*(B3^2)*B31+(B6-B7)*B3*B30-B6*B11+MIN(MAX(B8,B3))
A30: VC D | B30: =IF(B3<B8,1/B6+B14*B21*(B3^(B14-1)),1/B7+B15*B23*(B3^(B15-1))) -> 21.93341218 | C30: IF(B3<B8,1/B6+B14*B21*(B3^(B14-1)),1/B7+B15*B23*(B3^(B15-1)))
A31: VC G | B31: =IF(B3<B8,(B14-1)*B14*B21*(B3^(B14-2)),(B15-1)*B15*B23*(B3^(B15-2))) -> 0.5326453551 | C31: IF(B3<B8,(B14-1)*B14*B21*(B3^(B14-2)),(B15-1)*B15*B23*(B3^(B15-2)))
A32: VC D
A33: IF(B3<B8) | B33: =B14*B21*(B3^(B14-1)) -> 25.57610518 | C33: B14*B21*(B3^(B14-1))
A34: IF(B8<B3 | B34: =1/B7+B15*B23*(B3^(B15-1)) -> 21.93341218 | C34: 1/B7+B15*B23*(B3^(B15-1))
C35: Decomposition
A36: IF(B8<B3 | B36: =1/B7 -> 25 | C36: 1/B7
A37: IF(B8<B3 | B37: =B15*B23*(B3^(B15-1)) -> -3.066587816 | C37: B15*B23*(B3^(B15-1))

Sheet Problem 14.5
A1: ACTIVE PPP WITH COLLAR PROBLEM 14.5
A2: INPUT | D2: EQ
A3: R | B3: 10
A5: s | B5: 0.25
A6: r | B6: 0.04
A7: d | B7: 0.04
A8: RL | B8: 2
A9: RH | B9: 12
A10: OUTPUT
A14: b1 | B14: =0.5-(B6-B7)/(B5^2)+SQRT(((B6-B7)/(B5^2)-0.5)^2 + 2*B6/(B5^2)) -> 1.736931688 | C14: 0.5-(B6-B7)/(B5^2)+SQRT(((B6-B7)/(B5^2)-0.5)^2 + 2*B6/(B5^2)) | D14: 4
A16: VC | B16: =IF(B3<B8,B8/B6+B22*(B3^B14),IF(B3>B9,B9/B6+B25*(B3^B18),B3/B7+B23*(B3^B14)+B24*(B3^B18))) -> 167.8217318 | D16: 5
A17: VC PV | B17: =IF(B3<B8,B8/B6,IF(B3>B9,B9/B6,B3/B7)) -> 250 | C17: IF(B3<$B$8,$B$8/B6,IF(B3>$B$9,$B$9/B6,B3/B7))
A18: b2 | B18: =0.5-(B6-B7)/(B5^2)-SQRT(((B6-B7)/(B5^2)-0.5)^2 + 2*B6/(B5^2)) -> -0.7369316877 | C18: 0.5-(B6-B7)/(B5^2)-SQRT(((B6-B7)/(B5^2)-0.5)^2 + 2*B6/(B5^2)) | D18: 4
A19: AC21*R^b1 | B19: =B23*(B3^B14) -> -88.35133748 | C19: B23*(B3^B14)
A20: AC22*R^b2 | B20: =B24*(B3^B18) -> 6.173069241 | C20: B24*(B3^B18)
A21: VC | B21: =B17+B19+B20 -> 167.8217318 | C21: B17+B19+B20
A22: AC11 | B22: =(B9/(B9^B14)-B8/(B8^B14))*(B26/B28) -> 4.444404171 | C22: ($B$9/($B$9^B14)-$B$8/($B$8^B14))*(B26/B28) | D22: 10
A23: AC21 | B23: =(B9/(B9^B14))*(B26/B28) -> -1.61912896 | C23: ($B$9/($B$9^B14))*(B26/B28) | D23: 10
A24: AC22 | B24: =(-B8/(B8^B18))*(B27/B28) -> 33.6847118 | C24: (-$B$8/($B$8^B18))*(B27/B28) | D24: 10
A25: AC32 | B25: =(B9/(B9^B18)-B8/(B8^B18))*(B27/B28) -> -723.1976778 | C25: ($B$9/($B$9^B18)-$B$8/($B$8^B18))*(B27/B28) | D25: 10
A26: [ ] | B26: =(B6*B18-B6-B7*B18) -> -0.04 | C26: (B6*B18-B6-B7*B18) | D26: 10
A27: ( ) | B27: =(B6*B14-B6-B7*B14) -> -0.04 | C27: (B6*B14-B6-B7*B14) | D27: 10
A28: { } | B28: =(B14-B18)*B6*B7 -> 0.003958181401 | C28: (B14-B18)*B6*B7 | D28: 10
A30: ODE | B30: =0.5*(B5^2)*(B3^2)*B32+(B6-B7)*B3*B31-B6*B16+B3 -> 0 | C30: 0.5*(B5^2)*(B3^2)*B32+(B6-B7)*B3*B31-B6*B16+B3 | D30: 2
A31: VC D | B31: =1/B7+B14*B23*(B3^(B14-1))+B18*B24*(B3^(B18-1)) -> 9.199063195 | C31: 1/B7+B14*B23*(B3^(B14-1))+B18*B24*(B3^(B18-1))
A32: VC G | B32: =B14*(B14-1)*B23*(B3^(B14-2))+B18*(B18-1)*B24*(B3^(B18-2)) -> -1.051881833 | C32: B14*(B14-1)*B23*(B3^(B14-2))+B18*(B18-1)*B24*(B3^(B18-2))
A33: VC | B33: IF(B3<$B$8,$B$8/B6+B22*(B3^B14),IF(B3>$B$9,$B$9/B6+B25*(B3^B18),B3/B7+B23*(B3^B14)+B24*(B3^B18)))

Sheet Problem 14.6
A1: INVESTMENT OPPORTUNITY FOR A PPP WITH A COLLAR OPTION PROBLEM 14.6
A2: INPUT | D2: EQ
A3: R | B3: 4
A4: K | B4: 100
A5: s | B5: 0.25
A6: r | B6: 0.04
A7: d | B7: 0.04
A8: RL | B8: 4
A9: RH | B9: 10
A10: OUTPUT
A11: ROV CALL | B11: =IF(B3<B13,((B4/(B14-1))*(B3/B13)^B14),B12) -> 30.60671289 | C11: IF(B3<B13,((B4/(B14-1))*(B3/B13)^B14),B12) | D11: 16
A12: R/d-K | B12: =MAX(B3/B7-B4,0) -> 0 | C12: MAX(B3/B7-B4,0)
A13: R^ | B13: =(B14/(B14-1))*B4*B7 -> 9.427911524 | C13: (B14/(B14-1))*B4*B7 | D13: 15
A14: b1 | B14: =0.5-(B6-B7)/(B5^2)+SQRT(((B6-B7)/(B5^2)-0.5)^2 + 2*B6/(B5^2)) -> 1.736931688 | C14: 0.5-(B6-B7)/(B5^2)+SQRT(((B6-B7)/(B5^2)-0.5)^2 + 2*B6/(B5^2)) | D14: 4
A15: A0 | B15: =(B4*(B13^-B14))/(B14-1) -> 2.754733641 | C15: (B4*(B13^-B14))/(B14-1) | D15: 17
A17: ROV COLLAR | B17: =IF(B3<B20,B21*(B3^B14),B3/B7-B4+B23*(B3^B14)+B24*(B3^B18)) -> 19.8461903 | C17: IF(B3<B20,B21*(B3^B14),B3/B7-B4+B23*(B3^B14)+B24*(B3^B18)) | D17: 22
A18: b2 | B18: =0.5-(B6-B7)/(B5^2)-SQRT(((B6-B7)/(B5^2)-0.5)^2 + 2*B6/(B5^2)) -> -0.7369316877 | C18: 0.5-(B6-B7)/(B5^2)-SQRT(((B6-B7)/(B5^2)-0.5)^2 + 2*B6/(B5^2)) | D18: 4
A19: FIND R^ | B19: =B20/B7-(B14/(B14-1))*B4+((B14-B18)/(B14-1))*B24*(B20^B18) -> 0 | C19: B20/B7-(B14/(B14-1))*B4+((B14-B18)/(B14-1))*B24*(B20^B18) | D19: 20
A20: R^ | B20: 3.999999828 | C20: SOLVER Set B19=0, changing B20
A21: AC0 | B21: =(1/(B14-B18))*((1-B18)*(B20/B7)+B18*B4)*(B20^-B14)+B23 -> 1.786241086 | C21: (1/(B14-B18))*((1-B18)*(B20/B7)+B18*B4)*(B20^-B14)+B23 | D21: 21
A23: AC21 | B23: =($B$9/($B$9^B14))*(B26/B28) -> -1.851964297 | C23: ($B$9/($B$9^B14))*(B26/B28) | D23: 10
A24: AC22 | B24: =(-$B$8/($B$8^B18))*(B27/B28) -> 112.2797338 | C24: (-$B$8/($B$8^B18))*(B27/B28) | D24: 10
A26: [ ] | B26: =(B6*B18-B6-B7*B18) -> -0.04 | C26: (B6*B18-B6-B7*B18) | D26: 10
A27: ( ) | B27: =(B6*B14-B6-B7*B14) -> -0.04 | C27: (B6*B14-B6-B7*B14) | D27: 10
A28: { } | B28: =(B14-B18)*B6*B7 -> 0.003958181401 | C28: (B14-B18)*B6*B7 | D28: 10
A30: AC21*R^b1 | B30: =B23*(B3^B14) -> -20.57641387 | C30: B23*(B3^B14) | D30: RL<R<RH
A31: AC22*R^b2 | B31: =B24*(B3^B18) -> 40.42260417 | C31: B24*(B3^B18)
A32: ROV COLLAR | B32: =B12+B30+B31 -> 19.8461903 | C32: B12+B30+B31
